Cogmind - Beta 15 @@@ ROGUE MODE // 2025.08.16 @ 18:36:38 Player: StaticNoob Result: Destroyed by G-73 Enforcer with Phase Gun Performance ------------- Evolutions (9) 4500 Regions Visited (35) 7000 Robots Destroyed (458) 2290 Value Destroyed (22482) 22482 Prototype IDs (75) 1500 Alien Tech Used (2) 400 Bonus (10425) 10425 TOTAL SCORE: 48597 Bonus ------- High Alert Combat Kills 2677 Follower Combat Kills 1628 Entered Garrisons 600 Aligned with FarCom 300 Destroyed Z-Imprinter 1000 Triggered Deep Caves Wall 500 Acquired ECA 300 Met Zhirov 300 Met Warlord at Base 500 MAIN.C Attacked Warlord 500 Warlord Defense Kills 150 Built Enhanced Grunts 300 A7 Reached Mainframe 300 Met R17 at Cetus 500 Read Decrypted Archives 300 Met R17 at Research 2000 Friendly Fire -1430 Cogmind --------- Core Integrity 0/1600 Matter 218/300 Energy 98/100 System Corruption 19% Temperature Cool (0) Movement Core (50) Location -1/Access Parts ------- > --- POWER (3) -------- (None) > --- PROPULSION (6) --- (None) > --- UTILITY (12) ----- (None) > --- WEAPON (4) ------- (None) > --- INVENTORY (5) ---- Medium Treads Advanced Cooling System Advanced Target Analyzer Improved Point Defense System Improved Point Defense System Peak State ------------ > --- POWER ------------ Quantum Reactor Light Quantum Reactor Improved Quantum Reactor > --- PROPULSION ------- Advanced Medium Treads Myomer Leg Shield Leg Biometal Leg Biometal Leg Improved Thunder Leg > --- UTILITY ---------- Advanced Heat Sink Advanced Coolant Injector Huge Storage Unit Quantum Capacitor Centrium Light Armor Plating Graphene Brace Advanced Shield Generator Advanced Force Field Advanced Remote Force Field Advanced Hacking Suite Drone Bay > --- WEAPON ----------- Tesla Rifle Enhanced Nova Cannon Fusion Bomb Launcher Fusion Bomb Launcher > --- INVENTORY -------- Light Antimatter Reactor Medium Treads Spiked Medium Treads Advanced Medium Treads Advanced Heavy Treads Advanced Heavy Treads Advanced Heavy Siege Treads Energy Well Compact Matter Pod Launcher Loader Improved Point Defense System Improved Point Defense System Nova Cannon [Rating: 191] Favorites ----------- Power Assembled Flux Generator Engine Light Ion Engine Power Core Light Nuclear Core Reactor Assembled Flux Generator Propulsion Assembled Alloy Leg Treads Light Treads Leg Assembled Alloy Leg Wheel Wheel Utility Assembled Nanovents Device Assembled Nanovents Storage Assembled Biocell Array Processor Targeting Computer Hackware Advanced Hacking Suite Protection Assembled Alloy Armor Weapon Assembled Focal Cannon Energy Gun Heavy Laser Energy Cannon Assembled Focal Cannon Ballistic Gun Improved Assault Rifle Launcher Fusion Bomb Launcher Impact Weapon Maul Build | -11 -10 -10 -9 -9 -9 -8 -8 -8 -8 -7 -7 -7 -7 -7 -7 -7 -6 -6 -6 -6 -6 -6 -5 -5 -5 -5 -4 -4 -4 -4 -4 -3 -3 -2 -1 ------- Run | Yrd Mat Min Mat Min Exi Min Mat Gar Mat Fac Gar Fac Low Low Zio Dee Pro Fac Gar Ext Cet Arc Fac Upp Upp War Pro Fac Upp Upp Zhi Pro Res Res Acc Slots Evolved 18 | . . . 2 . . . 2 . . 2 . . . . . . . 2 . . . . 2 . . . . 2 . . . . 2 2 2 Power 2 | . . . . . . . . . . 1 . . . . . . . . . . . . . . . . . . . . . . 1 . . Propulsion 4 | . . . . . . . . . . . . . . . . . . . . . . . . . . . . 2 . . . . 1 1 . Utility 10 | . . . 1 . . . 2 . . 1 . . . . . . . 2 . . . . 2 . . . . . . . . . . . 2 Weapon 2 | . . . 1 . . . . . . . . . . . . . . . . . . . . . . . . . . . . . . 1 . Parts Attached 279 | 7 12 4 13 . . 2 23 6 3 13 6 1 . 7 4 14 2 . . . 7 . 1 . 1 . 7 8 10 3 4 4 61 22 34 Power 38 | 1 1 1 2 . . . 3 1 . 3 . . . 1 . 2 . . . . 2 . . . . . . . 2 . 1 1 9 2 6 Engine 11 | 1 1 1 2 . . . 3 1 . 1 . . . . . . . . . . . . . . . . . . . . . . . . 1 Core 5 | . . . . . . . . . . 2 . . . 1 . . . . . . . . . . . . . . 1 . . . 1 . . Reactor 22 | . . . . . . . . . . . . . . . . 2 . . . . 2 . . . . . . . 1 . 1 1 8 2 5 Propulsion 56 | 3 3 2 3 . . 2 5 1 2 2 1 1 . . . 1 . . . . 1 . . . . . 1 1 . . . . 9 11 7 Treads 25 | 2 1 1 1 . . . 2 1 1 . . . . . . . . . . . . . . . . . 1 1 . . . . 7 . 7 Leg 16 | . . . . . . . . . 1 . 1 . . . . . . . . . 1 . . . . . . . . . . . 2 11 . Wheel 15 | 1 2 1 2 . . 2 3 . . 2 . 1 . . . 1 . . . . . . . . . . . . . . . . . . . Hover . | . . . . . . . . . . . . . . . . . . . . . . . . . . . . . . . . . . . . Flight . | . . . . . . . . . . . . . . . . . . . . . . . . . . . . . . . . . . . . Utility 110 | 1 3 . 4 . . . 10 1 . 5 1 . . 5 4 7 1 . . . 3 . 1 . 1 . 4 4 4 2 3 2 24 4 16 Device 47 | . . . . . . . 4 1 . 2 1 . . 4 2 2 1 . . . . . . . 1 . 1 2 1 . 2 1 12 1 9 Storage 16 | 1 2 . . . . . . . . 1 . . . 1 . 1 . . . . 1 . . . . . 2 . 1 1 . . 4 . 1 Processor 13 | . 1 . . . . . 1 . . 1 . . . . . . . . . . . . 1 . . . 1 1 1 1 . 1 1 1 2 Hackware 4 | . . . . . . . . . . . . . . . . . . . . . . . . . . . . . . . . . . 1 3 Protection 30 | . . . 4 . . . 5 . . 1 . . . . 2 4 . . . . 2 . . . . . . 1 1 . 1 . 7 1 1 Artifact . | . . . . . . . . . . . . . . . . . . . . . . . . . . . . . . . . . . . . Weapon 75 | 2 5 1 4 . . . 5 3 1 3 4 . . 1 . 4 1 . . . 1 . . . . . 2 3 4 1 . 1 19 5 5 Energy Gun 31 | . . . . . . . . 1 . 3 3 . . 1 . 4 1 . . . 1 . . . . . 2 3 3 1 . . 5 . 3 Energy Cannon 11 | . 1 . . . . . . . . . 1 . . . . . . . . . . . . . . . . . 1 . . . 6 1 1 Ballistic Gun 18 | 2 3 1 4 . . . 4 . . . . . . . . . . . . . . . . . . . . . . . . . 2 2 . Ballistic Cannon . | . . . . . . . . . . . . . . . . . . . . . . . . . . . . . . . . . . . . Launcher 13 | . 1 . . . . . 1 2 . . . . . . . . . . . . . . . . . . . . . . . . 6 2 1 Special Weapon . | . . . . . . . . . . . . . . . . . . . . . . . . . . . . . . . . . . . . Impact Weapon 2 | . . . . . . . . . 1 . . . . . . . . . . . . . . . . . . . . . . 1 . . . Slashing Weapon . | . . . . . . . . . . . . . . . . . . . . . . . . . . . . . . . . . . . . Piercing Weapon . | . . . . . . . . . . . . . . . . . . . . . . . . . . . . . . . . . . . . Special Melee Weapon . | . . . . . . . . . . . . . . . . . . . . . . . . . . . . . . . . . . . . Unidentified Prototypes 24 | . 2 . . . . . . . . 2 . . . . . 7 . . . . 3 . . . . . 1 . . . 4 1 2 2 . Corrupted Parts 7 | . . . . . . . . . . 1 . . . . . . . . . . . . . . . . . . . . . . 4 . 2 System Corruption 37 | . . . . . . . . . . 6 . . . . . . . . . . . . . . . . . . . . . . 24 . 7 Parts Lost 175 | . . 5 6 . . 1 10 6 . 4 5 . . 7 . 16 . . 2 3 6 2 1 . . . 9 . 2 1 . 14 25 1 49 Power 28 | . . 1 3 . . . 1 1 . 1 . . . 2 . 3 . . . . . . . . . . . . 1 . . 2 4 . 9 Propulsion 32 | . . 3 1 . . 1 2 2 . 1 2 . . . . 1 . . . . 2 . . . . . . . . . . 2 4 . 11 Utility 74 | . . . 1 . . . 3 1 . 2 1 . . 4 . 6 . . 2 3 2 . 1 . . . 6 . 1 1 . 9 11 . 20 Weapon 41 | . . 1 1 . . . 4 2 . . 2 . . 1 . 6 . . . . 2 2 . . . . 3 . . . . 1 6 1 9 Highest Loss Streak 31 | . . 5 2 . . 1 9 3 . 2 2 . . 5 . 11 . . 1 2 6 2 1 . . . 3 . 1 1 . 8 10 1 31 To Critical Strikes 2 | . . . . . . . . . . . . . . . . . . . . . 1 . . . . . . . . . . . 1 . . Average Backups 11 | . 8 16 21 23 24 24 24 22 21 19 16 16 17 15 16 17 4 5 5 5 2 2 3 3 3 3 2 2 4 4 5 4 13 20 13 Power . | . 1 1 . . . . . . . . 1 . . . . . . 1 1 1 . . . . . . . 1 1 1 . . . 1 1 Propulsion 1 | . 1 1 . 1 1 . . . . . . . 1 1 1 . . . . . 1 2 2 2 2 2 1 . . . . . 4 5 3 Utility 3 | . . 3 7 9 10 10 8 8 8 7 6 6 7 5 5 5 . 1 1 1 . . 1 1 1 1 . . . . 1 . 4 8 6 Weapon 5 | . 3 9 11 12 12 12 13 13 12 10 7 7 8 7 9 9 3 3 3 3 . . . . . . . 1 3 3 3 3 4 4 . Tool/Special . | . . . . . . . . . . . . . . . . . . . . . . . . . . . . . . . . . . . . Unused Backups 51 | . . . 3 . . 3 4 . . 3 . 2 . . 2 5 2 . . . 3 1 . . . . . . . . 1 . 3 13 6 Power 7 | . . . . . . . . . . . . 1 . . . 2 . . . . 1 . . . . . . . . . 1 . . 2 . Propulsion 12 | . . . 1 . . . . . . . . . . . 1 . 1 . . . . . . . . . . . . . . . 2 7 . Utility 11 | . . . 1 . . 1 . . . 1 . . . . 1 2 . . . . . . . . . . . . . . . . . . 5 Weapon 18 | . . . 1 . . 2 3 . . 2 . . . . . 1 1 . . . 2 1 . . . . . . . . . . 1 4 . Tool/Special 3 | . . . . . . . 1 . . . . 1 . . . . . . . . . . . . . . . . . . . . . . 1 Average Slot Usage (%) 87 | . 97 99 98 100 100 100 97 96 95 98 99 92 92 89 80 80 71 85 85 85 79 86 87 88 87 88 72 77 86 88 89 63 75 94 85 Engine 3 | . 14 14 10 11 11 11 8 8 9 3 7 7 7 6 . . . . . . . . . . . . . . . . . . . . . Core 1 | . . . . . . . . . . 10 7 7 7 7 7 . . . . . . . . . . . . . 2 5 2 . 1 . . Reactor 4 | . . . . . . . . . . . . . . . . 11 6 6 6 6 8 6 5 5 5 5 5 5 5 5 7 7 10 13 11 Treads 3 | . 23 13 6 . . . 1 6 13 8 . . . . . . . . . . . . . . . . 2 10 10 10 10 7 11 . 12 Leg 6 | . . . . . . . . . . . 4 2 . . . . 13 13 13 13 11 13 11 11 11 11 4 . . . . . . 25 7 Wheel 4 | . 4 14 15 22 22 22 16 7 . 5 9 4 7 7 7 6 . . . . . . . . . . . . . . . . . . . Device 20 | . . . . . . . 8 16 18 18 14 15 15 18 23 9 18 32 33 32 27 29 33 35 34 35 24 24 33 31 31 20 16 17 24 Storage 7 | . 14 14 11 11 11 11 9 9 9 7 7 7 7 7 7 12 5 6 6 6 6 6 5 5 5 5 7 9 5 9 7 5 9 4 5 Processor 4 | . 11 14 11 11 11 11 9 9 9 11 15 15 15 14 7 7 2 . . . . . . . . . . 1 5 5 5 5 3 1 . Protection 8 | . . . 10 11 11 11 17 10 9 6 7 7 7 3 5 7 4 6 5 6 9 9 10 11 11 11 12 10 7 5 7 3 5 12 4 Energy Gun 4 | . . . . . . . . . 8 19 21 22 23 23 20 20 2 . . . . . . . . . 7 14 14 15 15 11 1 1 4 Energy Cannon 7 | . 1 . . . . . . 2 8 2 . . . . . . 15 20 19 20 14 19 17 17 17 17 3 . . . . . 9 . 4 Ballistic Gun 7 | . 26 27 32 33 33 33 26 18 7 . . . . . . . . . . . . . . . . . . . . . . . 1 14 . Peak Build Rating 191 | 6 12 13 20 17 17 18 36 39 36 45 44 49 49 51 53 76 116 134 134 134 134 136 154 154 154 154 154 153 149 139 146 144 151 168 191 Average Rating 96 | 5 11 12 17 17 17 17 29 36 35 42 42 46 49 49 49 65 95 133 133 133 121 134 152 154 153 154 116 139 142 137 141 105 128 161 170 On Entrance 80 | . 6 12 12 17 17 17 18 36 34 35 44 40 49 49 46 51 28 116 134 134 134 134 136 154 154 154 154 108 148 138 139 144 10 119 168 Naked Turns 18 | . . . . . . . . . . . . . . . . . . . . . . . . . . . . . . . . . . . 18 Heaviest Build 229 | 11 91 91 103 98 98 98 127 127 120 126 75 75 73 81 78 93 99 95 95 95 108 108 102 102 102 102 102 79 85 54 56 58 183 214 229 Greatest Support 210 | 40 40 40 40 22 22 22 40 26 40 40 26 28 28 28 28 28 60 80 80 80 80 80 80 80 80 80 80 160 160 160 160 160 175 159 210 Greatest Overweight (x) 29 | . 5 3 4 4 4 4 29 12 5 6 7 7 2 2 2 3 1 1 1 1 22 1 2 1 1 1 1 . . . . 5 2 1 3 Average Overweight (x) 1 | . 1 2 3 4 4 4 4 8 3 3 3 2 2 2 2 2 . 1 1 . 1 1 1 1 1 1 . . . . . . . 1 . Largest Inventory Capacity 25 | 8 25 25 25 25 25 25 25 25 25 25 20 20 20 20 20 20 5 5 5 5 5 5 5 5 5 5 5 5 5 5 5 5 25 25 25 Average Capacity 14 | 7 13 25 25 25 25 25 25 25 25 23 20 20 20 20 20 19 5 5 5 5 5 5 5 5 5 5 5 5 5 5 5 5 21 25 24 Most Carried 25 | 1 11 19 25 24 25 25 25 25 22 25 20 20 20 20 20 20 5 5 5 5 5 5 5 5 5 5 5 5 5 5 5 5 25 25 24 Average Carried 12 | . 8 16 21 23 24 24 24 22 21 20 18 18 20 18 19 19 4 5 5 5 3 4 5 5 5 5 3 2 4 4 5 4 16 24 16 Final Capacity 25 | 8 25 25 25 25 25 25 25 25 25 20 20 20 20 20 20 5 5 5 5 5 5 5 5 5 5 5 5 5 5 5 5 5 25 25 5 Final Carried 25 | 1 11 16 23 24 25 25 25 21 22 20 18 20 20 18 20 5 5 5 5 5 5 5 5 5 5 5 3 5 5 5 5 4 23 22 5 Class Distribution -------------------- 28% | Golem 15% | Gunner 15% | Scavenger-Tank 8% | Scavenger-Gunner 7% | Mutant 5% | Tank 4% | Scavenger-Skirmisher 3% | Skirmisher 3% | Commander-Golem 3% | Scavenger-Mutant Dominant Class ---------------- Mutant | -10/Materials Mutant | -10/Mines Scavenger-Gunner | -9/Materials Gunner | -9/Mines Gunner | -9/Exiles Skirmisher | -8/Mines Tank | -8/Materials Skirmisher | -8/Garrison Scavenger-Skirmisher | -8/Materials Scavenger-Gunner | -7/Factory Scavenger-Gunner | -7/Garrison Gunner | -7/Factory Gunner | -7/Lower Caves Gunner | -7/Lower Caves Gunner | -7/Zion Gunner | -7/Deep Caves Golem | -6/Proximity Caves Golem | -6/Factory Golem | -6/Garrison Golem | -6/Extension Commander-Golem | -6/Cetus Golem | -6/Archives Golem | -5/Factory Golem | -5/Upper Caves Golem | -5/Upper Caves Golem | -5/Warlord Scavenger-Mutant | -4/Proximity Caves Scavenger-Tank | -4/Factory Scavenger-Gunner | -4/Upper Caves Scavenger-Gunner | -4/Upper Caves Scavenger-Gunner | -4/Zhirov Derelict-Gunner | -3/Proximity Caves Scavenger-Tank | -3/Research Scavenger-Tank | -2/Research Scavenger-Tank | -1/Access Resources | -11 -10 -10 -9 -9 -9 -8 -8 -8 -8 -7 -7 -7 -7 -7 -7 -7 -6 -6 -6 -6 -6 -6 -5 -5 -5 -5 -4 -4 -4 -4 -4 -3 -3 -2 -1 ----------- Run | Yrd Mat Min Mat Min Exi Min Mat Gar Mat Fac Gar Fac Low Low Zio Dee Pro Fac Gar Ext Cet Arc Fac Upp Upp War Pro Fac Upp Upp Zhi Pro Res Res Acc Matter Collected 7883 | 189 331 220 890 150 . 125 949 399 157 141 245 34 42 332 86 242 123 9 . . 70 . 10 . 10 . 90 78 105 72 80 157 1261 597 689 Remotely 108 | . . . . . . . 108 . . . . . . . . . . . . . . . . . . . . . . . . . . . . Salvage Created 22589 | 42 359 321 1593 220 . 177 1324 652 238 1017 444 159 42 631 . 526 616 203 838 2088 125 . 897 . 505 70 896 129 449 261 481 639 2951 271 3425 Parts 1006 | 7 43 28 103 25 . 12 71 38 14 33 19 13 1 18 . 10 11 9 26 85 3 . 51 . 18 2 33 10 26 2 5 12 117 8 153 Haulers Intercepted 8 | . 1 . 2 . . . 3 . 1 . . . . . . . . . . . . . . . . . . . . . . . . . 1 Recyclers Shooed 3 | . . . 1 . . . . . . 1 . . . . . . . . . . . . . . . . . . . . . . . . 1 Parts Field Recycled . | . . . . . . . . . . . . . . . . . . . . . . . . . . . . . . . . . . . . Retrieved Matter . | . . . . . . . . . . . . . . . . . . . . . . . . . . . . . . . . . . . . Parts Self-Destructed 95 | . . . . . . . . . . . . . . 19 . . 11 . . . . . . . 8 . 30 . 9 2 3 13 . . . Prevented 22 | . . . . . . . . . . . . . . 1 . . . . . . . . . 2 . . . . 16 3 . . . . . Kills | -11 -10 -10 -9 -9 -9 -8 -8 -8 -8 -7 -7 -7 -7 -7 -7 -7 -6 -6 -6 -6 -6 -6 -5 -5 -5 -5 -4 -4 -4 -4 -4 -3 -3 -2 -1 ------- Run | Yrd Mat Min Mat Min Exi Min Mat Gar Mat Fac Gar Fac Low Low Zio Dee Pro Fac Gar Ext Cet Arc Fac Upp Upp War Pro Fac Upp Upp Zhi Pro Res Res Acc Combat Hostiles Destroyed 388 | . 11 9 28 3 . 3 24 25 3 11 11 2 . 13 . 26 10 4 14 31 2 . 10 . 8 1 16 2 9 5 . 9 44 2 52 Melee 2 | . . . . . . . . . . . . . . . . . . . . . . . . . . . . . . 1 . 1 . . . Guns 131 | . 7 9 25 3 . 3 18 8 1 7 6 1 . 12 . 5 . . . . . . . . . . 3 2 5 4 . 6 3 2 1 Cannons 118 | . 1 . . . . . . 2 2 1 . . . . . . 10 4 14 31 2 . 10 . 8 1 10 . 1 . . . 9 . 12 AOE 101 | . 3 . 3 . . . 6 15 . 2 3 1 . . . 19 . . . . . . . . . . . . . . . . 20 . 29 Classes Destroyed 27 | 1 5 1 4 1 . . . . . 1 1 . 1 . . 3 1 . . 2 . . . . . . . . . . . . 4 1 1 Worker 10 | . 1 . 1 . . . 2 . 1 . . 1 . . . . . 1 . . . . 2 . . . . . . . . . . . 1 Builder 22 | . 2 . 4 1 . 1 3 . 2 1 . 2 . . . . . . . . . . . . . . . . . . . . . . 6 Tunneler 11 | 2 . . . 3 . 1 . . . 1 . . . . . . . . . . . . 2 . . . . . . . . . . . 2 Hauler 8 | . 1 . 2 . . . 3 . 1 . . . . . . . . . . . . . . . . . . . . . . . . . 1 Recycler 11 | . . . 5 . . 1 . . . 4 . . . . . . . . . . . . . . . . . . . . . . . . 1 Carrier 1 | . . . . . . . . . . . . . . . . . . . . . . . . . . . . . . . . . 1 . . Operator 3 | . . . 1 . . . 1 . . . . . . . . . . 1 . . . . . . . . . . . . . . . . . Drone 4 | . . . . . . . . . . . . . . . . . 2 . . . . . . . . . 2 . . . . . . . . Watcher 20 | . . . 5 . . . 1 . . . . . . . . . . 1 . 2 . . 6 . . . . . . . . . . . 5 Swarmer 83 | . 6 3 10 . . 2 . 11 . . 3 . . 4 . . 1 3 . . . . . . . . 4 . 5 2 . 1 7 . 21 Grunt 119 | . 5 4 8 2 . 1 17 13 3 4 6 . . 6 . . 1 . 7 15 . . 2 . . . 6 . . 2 . 2 6 . 9 Brawler 14 | . . . . 1 . . . . . 1 . . . 2 . . 1 . 3 1 . . . . . . . . . . . 2 1 . 2 Duelist 10 | . . . 1 . . . 2 . . 1 . . . . . . 1 . 3 . . . . . . . . . . . . 2 . . . Protector 1 | . . . . . . . . . . . . . . . . . . . . 1 . . . . . . . . . . . . . . . Sentry 42 | . . 2 9 . . . 5 1 . 3 . . . 1 . . 1 1 . 9 . . 3 . . . 1 1 . 1 . 1 1 . 2 Demolisher 6 | . . . . . . . . . . . . . . . . . . . . . . . . . . . . . . . . . 6 . . Hunter 31 | . . . . . . . . . . . 2 1 . . . . 3 . . 3 . . . . 2 . 2 . 4 . . . 5 2 7 Programmer 24 | . . . . . . . . . . 2 . 1 . . . . . . 1 . . . 5 . . . . 1 . . . 1 4 . 9 Heavy 1 | . . . . . . . . . . . . . . . . . . . . . . . . . . . . . . . . . . . 1 Behemoth 4 | . . . . . . . . . . . . . . . . . . . . 1 . . . . . 1 1 . . . . . . . 1 Cetus Guard 2 | . . . . . . . . . . . . . . . . . . . . . 2 . . . . . . . . . . . . . . Striker 14 | . . . . . . . . . . . . . . . . . . . . . . . . . . . . . . . . . 14 . . Z-Light 5 | . . . . . . . . . . . . . . . . 5 . . . . . . . . . . . . . . . . . . . Samaritan 1 | . . . . . . . . . . . . . 1 . . . . . . . . . . . . . . . . . . . . . . Assembled 20 | . . . . . . . . . . . . . . . . 20 . . . . . . . . . . . . . . . . . . . Golem 1 | . . . . . . . . . . . . . . . . 1 . . . . . . . . . . . . . . . . . . . Surgeon 1 | . . . . . . . . . . . . . . . . . . . . . . . . . . . . . . . . . . 1 . Wasp 1 | . . . . . . . . . . . . . . . . . . . . . . . . . . . . . . . . . . 1 . Savage 2 | . . . . . . . . . . . . . . . . . . . . 1 . . . . 1 . . . . . . . . . . Butcher 5 | . . . . . . . . . . . . . . . . . . . . . . . . . 5 . . . . . . . . . . Guerrilla 1 | . . . . . . . . . . . . . . . . . . . . 1 . . . . . . . . . . . . . . . Revision 1 | . . . . . . . . . . . . . . . . . . . . . . . . . . . . . . . . . 1 . . Best Kill Streak 24 | 2 3 3 11 2 . 2 10 7 2 4 3 2 . 9 . 17 4 3 3 5 1 . 3 . 2 1 4 1 5 5 . 3 12 1 24 Combat Bots Only 17 | . 3 3 11 2 . 2 9 7 2 3 3 1 . 9 . 17 4 3 3 5 1 . 2 . 2 1 4 1 5 5 . 3 12 1 17 Max Kills in Single Turn 7 | 1 2 1 4 1 . 1 4 3 1 2 2 2 1 1 . 7 1 2 1 2 1 . 2 . 1 1 1 1 1 1 . 1 3 2 6 Gunslinging 2 | . . . 2 . . . . . . . 1 . . . . . . . . . . . . . . . . . . . . . . . . Exploded 7 | . 2 . 3 . . . 3 3 . 2 1 1 . . . 7 . . . . . . . . . . . . . . . . 3 . 4 Melee 1 | . . . . . . . . . . . . . . . . . . . . . . . . . . . . . . 1 . 1 . . . Uniques/NPCs Destroyed 1 | . . . . . . . . . . . . . . . . 1 . . . . . . . . . . . . . . . . . . . Z-Imprinter (-7/Deep Caves) Combat | -11 -10 -10 -9 -9 -9 -8 -8 -8 -8 -7 -7 -7 -7 -7 -7 -7 -6 -6 -6 -6 -6 -6 -5 -5 -5 -5 -4 -4 -4 -4 -4 -3 -3 -2 -1 -------- Run | Yrd Mat Min Mat Min Exi Min Mat Gar Mat Fac Gar Fac Low Low Zio Dee Pro Fac Gar Ext Cet Arc Fac Upp Upp War Pro Fac Upp Upp Zhi Pro Res Res Acc Hostile Shots Fired 2707 | . 41 45 97 6 . 18 150 64 2 107 41 12 . 50 . 152 85 31 63 255 22 . 53 . 5 9 210 12 52 35 . 132 284 6 668 Missed 849 | . 14 10 26 2 . 1 43 16 . 45 12 5 . 19 . 50 23 12 14 70 4 . 18 . 2 5 85 4 27 8 . 35 101 2 196 Hits 1858 | . 27 35 71 4 . 17 107 48 2 62 29 7 . 31 . 102 62 19 49 185 18 . 35 . 3 4 125 8 25 27 . 97 183 4 472 Melee 65 | . . . . . . . 7 . . 4 . . . 2 . 8 4 . 10 1 . . . . 1 . . . . . . 9 15 . 4 Projectile 1793 | . 27 35 71 4 . 17 100 48 2 58 29 7 . 29 . 94 58 19 39 184 18 . 35 . 2 4 125 8 25 27 . 88 168 4 468 AOE 20 | . . . . . . . . . . . . . . . . . . . . 4 . . . . . . . . . . . . 14 1 1 Critical Strikes 81 | . . 1 5 . . . 10 3 . 2 . 1 . 1 . 2 4 1 . 2 3 . 3 . . . 5 . . 2 . 5 13 1 17 Actively Blocked 13 | . . . . . . . . . . . . . . . . . . . . . . . . . . . . . . . . . . . 13 Part Disruptions 6 | . . . . . . . . . . 1 . 1 . . . . . . . . . . . . . . . . . . . . 3 . 1 Damage Taken 36316 | . 287 401 907 44 . 236 1771 728 26 730 517 108 . 600 . 2284 605 186 935 2215 386 887 619 . 55 135 2041 117 315 752 . 2389 6450 122 9468 Core 4854 | . 49 39 99 11 . 63 289 121 . 60 43 14 . 65 . 302 49 4 49 232 59 . 32 . . . 198 15 16 298 . 753 387 . 1607 Absorbed by Shields 2152 | . . . . . . . . . . . . . . . . . . . . 92 109 . . . . . . . . . . . . 44 1907 Reduced by Siege Mode 295 | . . . . . . . . . . . . . . . . . . . . . . . . . . . . . . . . . . . 295 Redirected to Shielding 411 | . . . . . . . . . . . . . . . . 149 . . . . . . . . . . . . . 23 . 239 . . . Ignored by Resistances 1901 | . . . . . . . 20 43 . 44 . . . . . . 130 38 176 468 61 159 125 . 11 26 423 25 38 . . . 6 . 108 Regen/Repaired (Parts) 107 | . . . . . . . . . . . . . . . . . . . . . . . . . . . . . . . . . . 107 . Core Remaining (%) 57 | 100 . 64 . . . 56 . . 25 . . . . . . . 23 . . . . 59 . . . . 77 . . . . 5 70 100 . Volleys Fired 1136 | 11 31 21 65 15 . 12 68 48 14 29 36 10 3 22 . 24 33 18 28 70 14 3 43 . 12 3 73 4 20 10 6 26 103 7 254 Largest 4 | 2 2 2 3 3 . 3 3 3 3 3 3 3 3 3 . 3 3 3 3 3 3 3 3 . 3 3 3 3 3 3 3 3 3 4 2 Hottest 289 | 40 91 46 69 66 . 66 76 117 162 198 185 207 207 207 . 193 75 75 75 75 75 75 75 . 75 75 138 257 257 264 264 264 289 138 120 Shots Fired 2355 | 22 59 38 194 45 . 36 197 95 28 88 69 28 9 64 . 58 80 44 80 204 32 9 109 . 36 9 117 12 34 30 18 78 148 28 257 Gun 1293 | 22 51 38 194 45 . 36 194 71 14 78 55 25 9 64 . 48 3 . . . . . . . . . 59 12 21 30 18 78 15 28 85 Cannon 944 | . 5 . . . . . . 10 14 10 4 3 . . . 4 77 44 80 204 32 9 109 . 36 9 58 . 13 . . . 89 . 134 Launcher 118 | . 3 . . . . . 3 14 . . 10 . . . . 6 . . . . . . . . . . . . . . . . 44 . 38 Special . | . . . . . . . . . . . . . . . . . . . . . . . . . . . . . . . . . . . . Kinetic 692 | 22 51 38 194 45 . 36 194 62 7 . . . . . . . . . . . . . . . . . . . . . . . 15 28 . Thermal 1346 | . 5 . . . . . . 19 21 88 52 22 9 64 . 41 80 44 80 204 32 9 109 . 36 9 117 12 21 30 18 78 15 . 131 Explosive 67 | . 3 . . . . . 3 14 . . 10 . . . . 6 . . . . . . . . . . . . . . . . 16 . 15 Electromagnetic 247 | . . . . . . . . . . . 7 6 . . . 8 . . . . . . . . . . . . 13 . . . 102 . 111 Phasic 3 | . . . . . . . . . . . . . . . . 3 . . . . . . . . . . . . . . . . . . . Robot Hit Streak 29 | 3 9 14 28 13 . 7 15 13 11 28 11 7 5 29 . 9 9 9 17 18 5 2 20 . 12 2 22 11 4 12 10 13 8 4 17 Robot Miss Streak 11 | 3 3 3 3 2 . 5 3 3 2 1 2 4 2 3 . 2 5 3 1 4 1 2 2 . 2 2 3 . 2 4 1 2 4 11 6 Penetration Max 1 | . . . . . . . 1 . . . . . . . . . . . . . . . . . . . . . . . . . . 1 . Secondary Targets 27 | . 1 4 5 . . 1 4 1 . . 2 . . 4 . . . . . . . . . . . . . . 2 3 . . . . . Max Gunslinging Chain 2 | . 1 1 2 . . 1 1 1 . . 1 . . 1 . . . . . . . . . . . . . . 1 1 . . . . . Capacitor 198 | . . . . . . . . . . . . . . . . . . . . . . . . . . . . . . . . . . . 198 Shots Hit Robots 1459 | 10 33 29 121 27 . 17 142 55 14 61 40 12 7 44 . 38 35 16 52 128 22 5 72 . 21 5 91 10 18 21 11 68 75 10 149 Core Hits 870 | 3 17 15 58 10 . 8 71 40 9 38 18 8 3 21 . 60 13 6 18 53 7 1 24 . 11 3 29 5 9 8 10 21 108 12 153 Critical Kills 7 | . . . . . . . . . . . . . . . . . . . . . . . . . . . . . . . . 1 4 1 1 Critical Parts Destroyed 11 | . 1 . 1 1 . . 2 . 1 . . . . . . . . . . . . . . . . . . . . . . 2 2 1 . Critical Strikes 52 | . 1 . 1 1 . . 2 . 1 3 2 1 . 4 . 1 . . . . . . . . . . 7 . 3 1 2 12 7 2 1 Burn 31 | . . . . . . . . . . 3 2 1 . 4 . 1 . . . . . . . . . . 7 . 1 1 2 9 . . . Meltdown 1 | . . . . . . . . . . . . . . . . . . . . . . . . . . . . . . . . . . . 1 Destroy 14 | . 1 . 1 1 . . 2 . . . . . . . . . . . . . . . . . . . . . . . . . 7 2 . Corrupt 2 | . . . . . . . . . . . . . . . . . . . . . . . . . . . . . 2 . . . . . . Smash 4 | . . . . . . . . . 1 . . . . . . . . . . . . . . . . . . . . . . 3 . . . Melee Attacks 12 | . . . . . . . . . 7 . . . . . . . . . . . . . . . . . . . . . . 5 . . . Impact 12 | . . . . . . . . . 7 . . . . . . . . . . . . . . . . . . . . . . 5 . . . Slashing . | . . . . . . . . . . . . . . . . . . . . . . . . . . . . . . . . . . . . Piercing . | . . . . . . . . . . . . . . . . . . . . . . . . . . . . . . . . . . . . Sneak Attacks 1 | . . . . . . . . . 1 . . . . . . . . . . . . . . . . . . . . . . . . . . Combat Hostiles . | . . . . . . . . . . . . . . . . . . . . . . . . . . . . . . . . . . . . Follow-up Attacks . | . . . . . . . . . . . . . . . . . . . . . . . . . . . . . . . . . . . . Damage Inflicted 58022 | 98 767 428 2346 387 . 266 2856 2124 354 1455 1083 367 134 871 . 2097 1485 738 2461 6859 997 256 3534 . 1028 235 2853 269 600 511 359 1895 6418 399 11492 Guns 16069 | 98 486 428 1870 387 . 266 2317 642 156 1037 654 216 134 871 . 725 . . . . . . . . . . 1014 269 204 495 359 1726 77 399 1239 Cannons 26518 | . 61 . . . . . . 100 102 125 107 79 . . . 71 1485 738 2461 6843 997 256 3534 . 1028 235 1839 . 396 . . . 1895 . 4166 Explosions 15134 | . 216 . 476 . . . 539 1382 . 293 322 72 . . . 1301 . . . . . . . . . . . . . . . . 4446 . 6087 Melee 255 | . . . . . . . . . 96 . . . . . . . . . . . . . . . . . . . . . . 159 . . . Ramming 46 | . 4 . . . . . . . . . . . . . . . . . . 16 . . . . . . . . . 16 . 10 . . . Kinetic 6933 | 98 486 428 1870 387 . 266 2317 585 20 . . . . . . . . . . . . . . . . . . . . . . . 77 399 . Thermal 33313 | . 61 . 476 . . . . 157 238 1213 602 224 134 871 . 648 1485 738 2461 6843 997 256 3534 . 1028 235 2853 269 204 495 359 1726 657 . 4549 Explosive 10274 | . 216 . . . . . 539 1382 . . 322 . . . . 1301 . . . . . . . . . . . . . . . . 2438 . 4076 Electromagnetic 7168 | . . . . . . . . . . 242 159 143 . . . 115 . . . . . . . . . . . . 396 . . . 3246 . 2867 Impact 255 | . . . . . . . . . 96 . . . . . . . . . . . . . . . . . . . . . . 159 . . . Slashing . | . . . . . . . . . . . . . . . . . . . . . . . . . . . . . . . . . . . . Piercing . | . . . . . . . . . . . . . . . . . . . . . . . . . . . . . . . . . . . . Phasic 33 | . . . . . . . . . . . . . . . . 33 . . . . . . . . . . . . . . . . . . . Highest Corruption 38 | . . . . . . . 2 2 2 12 12 14 14 14 14 5 5 . . . . . 1 1 1 . . . . . . 5 38 . 19 Average Corruption 7 | . . . . . . . 2 2 2 9 12 12 14 14 14 4 5 . . . . . 1 1 1 . . . . . . 2 18 . 6 Corruption Purged 1 | . . . . . . . . . . . . . . . . . . . . . . . . . 1 . . . . . . . . . . Corruption Blocked . | . . . . . . . . . . . . . . . . . . . . . . . . . . . . . . . . . . . . Effects 297 | . . . . . . . 9 17 4 16 44 25 10 27 2 . 43 . . . . . . . 1 . . . . . . 6 46 . 47 Message Errors 65 | . . . . . . . 2 3 2 5 7 6 2 6 1 . 9 . . . . . . . 1 . . . . . . 1 12 . 8 Matter Fused 75 | . . . . . . . 2 5 . 6 14 10 . 5 . . 9 . . . . . . . . . . . . . . 3 8 . 13 Heat Flow Errors 22 | . . . . . . . 1 . 1 . 4 1 1 1 1 . 3 . . . . . . . . . . . . . . . 5 . 4 Energy Discharges 38 | . . . . . . . 1 4 1 2 6 1 1 2 . . 5 . . . . . . . . . . . . . . . 9 . 6 Parts Rejected 3 | . . . . . . . . . . . 1 . . . . . . . . . . . . . . . . . . . . . 1 . 1 Parts Fused 2 | . . . . . . . 1 . . . 1 . . . . . . . . . . . . . . . . . . . . . . . . Data Loss (minor) 41 | . . . . . . . . 4 . 2 5 3 4 7 . . 9 . . . . . . . . . . . . . . 1 2 . 4 Data Loss (major) 16 | . . . . . . . 1 . . . 2 . 1 2 . . 2 . . . . . . . . . . . . . . . 3 . 5 Misfires 12 | . . . . . . . . . . 1 2 2 . . . . 3 . . . . . . . . . . . . . . 1 1 . 2 Alerts 9 | . . . . . . . 1 1 . . . 2 1 2 . . 2 . . . . . . . . . . . . . . . . . . Misdirections 1 | . . . . . . . . . . . . . . . . . . . . . . . . . . . . . . . . . . . 1 Weapon Failures 13 | . . . . . . . . . . . 2 . . 2 . . 1 . . . . . . . . . . . . . . . 5 . 3 Overload Shots . | . . . . . . . . . . . . . . . . . . . . . . . . . . . . . . . . . . . . Overflow Damage 1834 | . 33 . 24 . . . 34 104 96 . 8 . . . . 32 74 69 133 245 1 27 345 . 67 . 49 . . . . 57 211 . 225 Projectiles 1051 | . . . . . . . . . . . . . . . . . 74 69 133 245 1 27 345 . 67 . 49 . . . . . 33 . 8 Explosions 630 | . 33 . 24 . . . 34 104 . . 8 . . . . 32 . . . . . . . . . . . . . . . . 178 . 217 Melee 153 | . . . . . . . . . 96 . . . . . . . . . . . . . . . . . . . . . . 57 . . . Knockbacks 1 | . . . . . . . . . 1 . . . . . . . . . . . . . . . . . . . . . . . . . . Impact 1 | . . . . . . . . . 1 . . . . . . . . . . . . . . . . . . . . . . . . . . Kinetic . | . . . . . . . . . . . . . . . . . . . . . . . . . . . . . . . . . . . . Secondary . | . . . . . . . . . . . . . . . . . . . . . . . . . . . . . . . . . . . . Self-Inflicted Damage 1310 | . . . 26 . . . . 116 . 28 41 . . . . . . . . . . . . . . . . . . . . 5 833 . 261 Shots 57 | . . . 1 . . . . 4 . 1 1 . . . . . . . . . . . . . . . . . . . . . 44 . 6 Rammed 7 | . 1 . . . . . . . . . . . . . . . . . . . . . . . . . . . . 4 . 2 . . . Targets Rammed 9 | . 1 . . . . . . . . . . . . . . . . . . 1 . . . . . . . . . 5 . 2 . . . Kicked 1 | . . . . . . . . . . . . . . . . . . . . 1 . . . . . . . . . . . . . . . Crushed 1 | . . . . . . . . . . . . . . . . . . . . . . . . . . . . . . 1 . . . . . Highest Temperature 811 | . 204 22 75 36 . 74 199 199 102 197 199 187 171 320 178 462 168 . . . . . . . . . 299 336 204 811 208 738 196 . 441 Average Temperature 106 | . 94 7 18 11 . 23 74 55 33 52 92 76 78 125 117 154 77 . . . . . . . . . 61 158 58 422 95 280 40 . 127 Received Heat Transfer 5280 | . 102 192 306 24 . 96 855 369 18 126 126 . . 144 . 261 102 6 342 869 48 9 90 . . 12 530 9 . 194 . 258 75 . 117 Effects 49 | . . . . . . . . . . . . . . . . 3 . . . . . . . . . . . 3 . 18 . 19 . . 6 Shutdowns 13 | . . . . . . . . . . . . . . . . . . . . . . . . . . . . . . 6 . 5 . . 2 Energy Bleed 8 | . . . . . . . . . . . . . . . . 1 . . . . . . . . . . . 1 . 2 . 4 . . . Interference 7 | . . . . . . . . . . . . . . . . . . . . . . . . . . . . 2 . 5 . . . . . Matter Decay 2 | . . . . . . . . . . . . . . . . . . . . . . . . . . . . . . . . 2 . . . Damage (minor) 7 | . . . . . . . . . . . . . . . . 1 . . . . . . . . . . . . . 2 . 4 . . . Damage (major) 10 | . . . . . . . . . . . . . . . . 1 . . . . . . . . . . . . . 2 . 3 . . 4 Damage (core) 2 | . . . . . . . . . . . . . . . . . . . . . . . . . . . . . . 1 . 1 . . . Siege Activations 1 | . . . . . . . . . . . . . . . . . . . . . . . . . . . . . . . . . . . 1 Total Turns 61 | . . . . . . . . . . . . . . . . . . . . . . . . . . . . . . . . . . . 61 Longest Duration 61 | . . . . . . . . . . . . . . . . . . . . . . . . . . . . . . . . . . . 61 Martial Activations . | . . . . . . . . . . . . . . . . . . . . . . . . . . . . . . . . . . . . Shielding Activations 1 | . . . . . . . . . . . . . . . . . . . . . . . . . . . . . . . . . . . 1 Total Turns 35 | . . . . . . . . . . . . . . . . . . . . . . . . . . . . . . . . . . . 35 Longest Duration 35 | . . . . . . . . . . . . . . . . . . . . . . . . . . . . . . . . . . . 35 Robots Disrupted 1 | . . . . . . . . . . 1 . . . . . . . . . . . . . . . . . . . . . . . . . Combat Hostiles 1 | . . . . . . . . . . 1 . . . . . . . . . . . . . . . . . . . . . . . . . Robots Corrupted 27 | . . . . . . . . . 1 . 1 . . . . 1 . . . . . . . . . . . . 3 . . . 12 . 9 Combat Hostiles 26 | . . . . . . . . . . . 1 . . . . 1 . . . . . . . . . . . . 3 . . . 12 . 9 Parts Fried 63 | . . . . . . . . . 2 . 4 1 . . . . . . . 1 . . . . . . . . 6 . . 1 23 . 25 Impact Corruptions 5 | . . . . . . . . . 3 . . . . . . . . . . . . . . . . . . . . . . 2 . . . Robots Melted 10 | . . . . . . . . . . 1 1 . . 1 . 1 . . . . . . . . . . 3 . . . . 2 . . 1 Combat Hostiles 10 | . . . . . . . . . . 1 1 . . 1 . 1 . . . . . . . . . . 3 . . . . 2 . . 1 Parts Melted 57 | . . . . . . . . 1 . 10 3 1 . 5 . 4 . 1 . 2 2 . 2 . 1 1 8 2 . 1 . 10 . . 3 Heat Transferred 30868 | . 111 . 300 . . . . 277 444 2479 1369 383 259 1924 . 1034 875 425 1350 3439 575 175 1825 . 575 125 4085 370 370 777 517 3071 570 . 3164 Parts Sabotaged . | . . . . . . . . . . . . . . . . . . . . . . . . . . . . . . . . . . . . Parts Stolen . | . . . . . . . . . . . . . . . . . . . . . . . . . . . . . . . . . . . . Parts Stripped . | . . . . . . . . . . . . . . . . . . . . . . . . . . . . . . . . . . . . Power Chain Reactions 10 | . . . . . . . . . . 1 . 1 . . . . . . . . . . . . . . . . . . . . 2 . 6 Alert | -11 -10 -10 -9 -9 -9 -8 -8 -8 -8 -7 -7 -7 -7 -7 -7 -7 -6 -6 -6 -6 -6 -6 -5 -5 -5 -5 -4 -4 -4 -4 -4 -3 -3 -2 -1 ------- Run | Yrd Mat Min Mat Min Exi Min Mat Gar Mat Fac Gar Fac Low Low Zio Dee Pro Fac Gar Ext Cet Arc Fac Upp Upp War Pro Fac Upp Upp Zhi Pro Res Res Acc Maximum Alert Level 4 | . . . 2 . . . 1 4 2 1 2 1 . . . . . 4 3 3 2 2 1 . . . . 1 . . . . 3 2 4 Low Security (%) 49 | 100 100 100 51 100 . 100 39 8 . 70 12 25 . . . . . . . . . 78 97 . . . . 50 . . . . 57 59 27 Level 1 16 | . . . 26 . . . 60 10 3 29 15 74 . . . . . . . 1 16 13 2 . . . . 49 . . . . 4 27 23 Level 2 22 | . . . 22 . . . . 36 96 . 72 . . . . . . . 11 88 83 7 . . . . . . . . . . 18 13 20 Level 3 10 | . . . . . . . . 32 . . . . . . . . . 95 88 10 . . . . . . . . . . . . 19 . 25 Level 4 . | . . . . . . . . 11 . . . . . . . . . 4 . . . . . . . . . . . . . . . . 2 Level 5 . | . . . . . . . . . . . . . . . . . . . . . . . . . . . . . . . . . . . . High Security . | . . . . . . . . . . . . . . . . . . . . . . . . . . . . . . . . . . . . Max Security . | . . . . . . . . . . . . . . . . . . . . . . . . . . . . . . . . . . . . Peak Influence 1177 | 10 120 76 461 164 . 96 334 1132 551 258 655 357 . . . . . 1102 984 758 540 609 208 . . . . 302 . . . . 923 505 1177 Initial 918 | . . 46 13 164 . . 19 168 551 175 135 357 . . . . . 918 611 516 411 143 . . . . . 300 . . . . 49 505 4 Average 297 | 1 35 23 217 66 . 26 189 704 471 163 436 245 . . . . . 1000 874 557 460 100 53 . . . . 205 . . . . 303 182 421 Influence Increases 14721 | 10 409 210 914 135 . 177 828 1024 113 427 595 103 . 328 . . 240 1228 393 1213 329 576 529 . 50 20 385 372 210 100 15 365 1419 60 1944 Destroy 0b10 Robot/C 7680 | . 220 180 560 60 . 120 540 500 60 220 220 40 . 260 . . 160 80 280 720 160 280 200 . 40 20 280 40 180 100 . 180 900 40 1040 Destroy 0b10 Robot/NC 505 | 10 20 . 90 20 . 15 50 . 20 30 . 15 . . . . 15 15 . 30 10 10 50 . . . 10 . . . 15 . . . 80 Destroy Leader 1346 | . 52 30 174 10 . 20 138 20 12 70 30 20 . 20 . . 20 22 10 84 . . 82 . 10 . 50 20 30 . . 20 200 20 182 Allied During Kill 578 | . . . . . . 22 17 . . . . . . 3 . . . . . 160 122 254 . . . . . . . . . . . . . Successful Hack 322 | . 42 . 25 . . . 18 . . 14 . 21 . . . . . 38 . 20 . . 47 . . . . 12 . . . . 67 . 18 Select Force Hacks 30 | . 30 . . . . . . . . . . . . . . . . . . . . . . . . . . . . . . . . . . Disable Machine 375 | . . . 30 15 . . 30 30 15 45 . . . . . . . . . 45 15 15 45 . . . . . . . . . 15 . 75 Anti-Garrison Action 650 | . . . . . . . . 250 . . 200 . . . . . . 150 50 . . . . . . . . . . . . . . . . Destroy Structure 1090 | . 15 . 35 15 . . 20 104 6 3 100 7 . . . . . 23 23 49 22 17 60 . . . . . . . . . 162 . 429 Advance Influence 1200 | . . . . . . . . . . . . . . . . . . 900 . . . . . . . . . 300 . . . . . . . Partial Spotted 30 | . . . . . . . . . . . . . . . . . . . 15 . . . . . . . . . . . . . 15 . . Lose Combat Pursuer 915 | . 30 . . 15 . . 15 120 . 45 45 . . 45 . . 45 . 15 105 . . 45 . . . 45 . . . . 165 60 . 120 Influence Decreases 13695 | 10 289 296 526 557 . 127 619 151 859 619 109 593 190 267 61 . 211 383 283 1462 706 934 323 206 50 20 385 230 319 133 15 291 594 950 927 Entered New Map 3623 | . . 74 21 258 . . 31 91 581 211 59 323 71 . 61 . . 11 263 468 324 215 . 77 . . . . 53 7 . . 25 394 5 Time Decay 7903 | 10 289 192 455 299 . 127 438 . 278 368 . 270 119 177 . . 201 222 . 624 302 579 313 129 50 20 335 230 246 116 15 171 319 546 463 Search Patrol Dispatched 150 | . . . . . . . . . . . . . . . . . . 150 . . . . . . . . . . . . . . . . . Lost Part 1419 | . . 30 50 . . . 80 60 . 40 50 . . 70 . . . . 20 30 60 20 10 . . . 50 . 20 10 . 120 250 10 439 Lost Ally 600 | . . . . . . . 70 . . . . . . 20 . . 10 . . 340 20 120 . . . . . . . . . . . . 20 Squads Dispatched 57 | . 2 . 3 . . . 4 . 3 3 . 3 . 1 . . . 4 . 10 . . 6 . . . . 1 . . . 1 6 . 10 Investigation 7 | . 1 . 1 . . . 1 . . . . . . . . . . 2 . . . . . . . . . . . . . . 2 . . Extermination 13 | . . . . . . . . . . 3 . 2 . . . . . . . . . . 3 . . . . 1 . . . . . . 4 Reinforcement 21 | . 1 . 2 . . . 2 . 2 . . 1 . . . . . . . 5 . . 1 . . . . . . . . . 4 . 3 Assault 13 | . . . . . . . . . 1 . . . . 1 . . . 2 . 5 . . 2 . . . . . . . . 1 . . 1 Garrison 3 | . . . . . . . 1 . . . . . . . . . . . . . . . . . . . . . . . . . . . 2 Intercept . | . . . . . . . . . . . . . . . . . . . . . . . . . . . . . . . . . . . . Searches Triggered 1 | . . . . . . . . . . . . . . . . . . 1 . . . . . . . . . . . . . . . . . Construction Impeded 5 | . . . 1 . . . 1 . . . . . . . . . . . . 2 . . . . . . . . . . . . . . 1 Haulers Reinforced 1 | . . . . . . . . . . . . . . . . . . . . . . . . . . . . . . . . . 1 . . Active Scanning Responses . | . . . . . . . . . . . . . . . . . . . . . . . . . . . . . . . . . . . . Cargo Convoy Interrupts . | . . . . . . . . . . . . . . . . . . . . . . . . . . . . . . . . . . . . Stealth | -11 -10 -10 -9 -9 -9 -8 -8 -8 -8 -7 -7 -7 -7 -7 -7 -7 -6 -6 -6 -6 -6 -6 -5 -5 -5 -5 -4 -4 -4 -4 -4 -3 -3 -2 -1 --------- Run | Yrd Mat Min Mat Min Exi Min Mat Gar Mat Fac Gar Fac Low Low Zio Dee Pro Fac Gar Ext Cet Arc Fac Upp Upp War Pro Fac Upp Upp Zhi Pro Res Res Acc Distress Signals 43 | . . . 3 . . . 4 . 1 1 . . . . . . . 1 . 2 2 1 . . . . . . . . . . 7 11 10 Communications Jammed . | . . . . . . . . . . . . . . . . . . . . . . . . . . . . . . . . . . . . Distress Signals . | . . . . . . . . . . . . . . . . . . . . . . . . . . . . . . . . . . . . Times Spotted 600 | . 15 9 41 4 . 7 37 26 3 15 10 5 . 18 . 56 19 7 14 55 10 9 21 . 7 6 19 6 9 5 . 26 56 6 79 Peak Tracking Total 37 | . 3 3 7 2 . 4 8 7 1 4 5 1 . 5 . 37 6 3 5 6 5 12 3 . 3 4 5 5 4 5 . 9 6 3 22 Tactical Retreats 39 | . 1 . . 1 . . 1 5 . 1 2 . . 1 . 1 3 . 1 5 . . 3 . . . 1 . . . . 4 4 . 5 Traps | -11 -10 -10 -9 -9 -9 -8 -8 -8 -8 -7 -7 -7 -7 -7 -7 -7 -6 -6 -6 -6 -6 -6 -5 -5 -5 -5 -4 -4 -4 -4 -4 -3 -3 -2 -1 ------- Run | Yrd Mat Min Mat Min Exi Min Mat Gar Mat Fac Gar Fac Low Low Zio Dee Pro Fac Gar Ext Cet Arc Fac Upp Upp War Pro Fac Upp Upp Zhi Pro Res Res Acc Traps Triggered 26 | . . . . . . . 2 4 . 2 8 . . . . . . . 3 5 . . . . . . . . . . . . 1 . 1 Indirectly . | . . . . . . . . . . . . . . . . . . . . . . . . . . . . . . . . . . . . Trap Hack Attempts . | . . . . . . . . . . . . . . . . . . . . . . . . . . . . . . . . . . . . Triggered . | . . . . . . . . . . . . . . . . . . . . . . . . . . . . . . . . . . . . Disarmed . | . . . . . . . . . . . . . . . . . . . . . . . . . . . . . . . . . . . . Reprogrammed . | . . . . . . . . . . . . . . . . . . . . . . . . . . . . . . . . . . . . Reused . | . . . . . . . . . . . . . . . . . . . . . . . . . . . . . . . . . . . . Traps Extracted . | . . . . . . . . . . . . . . . . . . . . . . . . . . . . . . . . . . . . Installed . | . . . . . . . . . . . . . . . . . . . . . . . . . . . . . . . . . . . . Triggered . | . . . . . . . . . . . . . . . . . . . . . . . . . . . . . . . . . . . . Machines | -11 -10 -10 -9 -9 -9 -8 -8 -8 -8 -7 -7 -7 -7 -7 -7 -7 -6 -6 -6 -6 -6 -6 -5 -5 -5 -5 -4 -4 -4 -4 -4 -3 -3 -2 -1 ---------- Run | Yrd Mat Min Mat Min Exi Min Mat Gar Mat Fac Gar Fac Low Low Zio Dee Pro Fac Gar Ext Cet Arc Fac Upp Upp War Pro Fac Upp Upp Zhi Pro Res Res Acc Machines Disabled 36 | . . . 2 1 . . 2 5 1 3 5 . . . . 1 . 1 1 3 1 1 3 . . . . . . . . . 1 . 5 Max in Single Turn 3 | . . . 2 1 . . 1 1 1 1 1 . . . . 1 . 1 1 1 1 . 1 . . . . . . . . . 1 . 3 Garrison Access 8 | . . . . . . . . . . . . 1 . . . . . 1 . . . . 2 . . . . . . . . . . 3 1 Garrison Relay 7 | . . . . . . . . 3 . . 3 . . . . . . . 1 . . . . . . . . . . . . . . . . Phase Generator 1 | . . . . . . . . . . . 1 . . . . . . . . . . . . . . . . . . . . . . . . Energy Cycler 2 | . . . . . . . . . . . . . . . . . . . . 2 . . . . . . . . . . . . . . . Machines Repaired . | . . . . . . . . . . . . . . . . . . . . . . . . . . . . . . . . . . . . Machines Dismantled . | . . . . . . . . . . . . . . . . . . . . . . . . . . . . . . . . . . . . Machines Sabotaged . | . . . . . . . . . . . . . . . . . . . . . . . . . . . . . . . . . . . . Overloaded Fab Kills . | . . . . . . . . . . . . . . . . . . . . . . . . . . . . . . . . . . . . Hacking | -11 -10 -10 -9 -9 -9 -8 -8 -8 -8 -7 -7 -7 -7 -7 -7 -7 -6 -6 -6 -6 -6 -6 -5 -5 -5 -5 -4 -4 -4 -4 -4 -3 -3 -2 -1 --------- Run | Yrd Mat Min Mat Min Exi Min Mat Gar Mat Fac Gar Fac Low Low Zio Dee Pro Fac Gar Ext Cet Arc Fac Upp Upp War Pro Fac Upp Upp Zhi Pro Res Res Acc Machines Accessed 76 | . 8 . 9 . 1 . 11 1 . 3 1 5 . . . . . 6 . 2 1 1 7 . . 1 . 2 1 . 5 . 6 . 5 Terminals 50 | . 7 . 9 . . . 8 1 . 1 1 4 . . . . . 4 . 2 1 . 4 . . . . 2 . . . . 4 . 2 Fabricators 3 | . . . . . . . . . . 1 . . . . . . . . . . . . 1 . . . . . . . . . . . 1 Repair Stations 1 | . . . . . . . . . . . . . . . . . . . . . . . . . . . . . . . . . 1 . . Recycling Units 3 | . 1 . . . . . 2 . . . . . . . . . . . . . . . . . . . . . . . . . . . . Scanalyzers . | . . . . . . . . . . . . . . . . . . . . . . . . . . . . . . . . . . . . Garrison Access 10 | . . . . . . . 1 . . 1 . 1 . . . . . 2 . . . . 2 . . . . . . . . . 1 . 2 Total Hacks 205 | . 23 . 29 . 1 . 28 2 . 6 3 9 . . . . . 16 . 3 1 18 19 . . 1 . 5 1 . 18 . 12 . 10 Successful 108 | . 11 . 16 . 1 . 12 . . 3 . 3 . . . . . 4 . 2 . 18 8 . . 1 . 3 1 . 18 . 4 . 3 Failed 97 | . 12 . 13 . . . 16 2 . 3 3 6 . . . . . 12 . 1 1 . 11 . . . . 2 . . . . 8 . 7 Catastrophic 17 | . 1 . 2 . . . 2 1 . 1 . 1 . . . . . 2 . 1 . . 2 . . . . . . . . . 2 . 2 Database Lockouts . | . . . . . . . . . . . . . . . . . . . . . . . . . . . . . . . . . . . . Manual 111 | . 21 . 20 . 1 . 20 . . 2 . 4 . . 1 . . 9 . 2 1 . 14 . . . . 4 . . . . 8 . 4 Terminals 135 | . 22 . 29 . . . 22 2 . 3 3 7 . . . . . 13 . 3 1 . 13 . . . . 5 . . . . 9 . 3 Fabricators 7 | . . . . . . . . . . 2 . . . . . . . . . . . . 2 . . . . . . . . . . . 3 Repair Stations 1 | . . . . . . . . . . . . . . . . . . . . . . . . . . . . . . . . . 1 . . Recycling Units 6 | . 1 . . . . . 5 . . . . . . . . . . . . . . . . . . . . . . . . . . . . Scanalyzers . | . . . . . . . . . . . . . . . . . . . . . . . . . . . . . . . . . . . . Garrison Access 17 | . . . . . . . 1 . . 1 . 2 . . . . . 3 . . . . 4 . . . . . . . . . 2 . 4 Terminal Hacks 66 | . 4 . 9 . 1 . 3 . . . . 1 . . . . . 1 . 1 . 18 4 . . 1 . 2 1 . 18 . 1 . 1 Record 24 | . . . . . . . . . . . . . . . . . . . . . . 18 . . . . . . . . 6 . . . . Part Schematic 4 | . . . . . . . . . . . . . . . . . . . . . . . . . . . . . . . 4 . . . . Robot Analysis 5 | . 1 . . . . . . . . . . . . . . . . . . . . . . . . . . . . . 4 . . . . Prototype ID Bank 13 | . 2 . 5 . . . 2 . . . . . . . . . . . . . . . . . . . . . . . 4 . . . . Open Door 3 | . . . . . . . . . . . . . . . . . . . . 1 . . . . . 1 . . 1 . . . . . . Open DSF 1 | . . . . . . . . . . . . . . . . . . . . . . . . . . . . 1 . . . . . . . Branch Access Points 5 | . . . 1 . . . . . . . . 1 . . . . . . . . . . 1 . . . . 1 . . . . 1 . . Locate Traps 3 | . 1 . 2 . . . . . . . . . . . . . . . . . . . . . . . . . . . . . . . . Zone Layout 7 | . . . 1 . . . 1 . . . . . . . . . . 1 . . . . 3 . . . . . . . . . . . 1 Proto ID Catalog 1 | . . . . . 1 . . . . . . . . . . . . . . . . . . . . . . . . . . . . . . Fabricator Hacks 3 | . . . . . . . . . . 1 . . . . . . . . . . . . 1 . . . . . . . . . . . 1 Network Status 3 | . . . . . . . . . . 1 . . . . . . . . . . . . 1 . . . . . . . . . . . 1 Repair Station Hacks 1 | . . . . . . . . . . . . . . . . . . . . . . . . . . . . . . . . . 1 . . Refit 1 | . . . . . . . . . . . . . . . . . . . . . . . . . . . . . . . . . 1 . . Recycling Unit Hacks 1 | . . . . . . . 1 . . . . . . . . . . . . . . . . . . . . . . . . . . . . Retrieve Components 1 | . . . . . . . 1 . . . . . . . . . . . . . . . . . . . . . . . . . . . . Scanalyzer . | . . . . . . . . . . . . . . . . . . . . . . . . . . . . . . . . . . . . Garrison Access Hacks 6 | . . . . . . . 1 . . 1 . 1 . . . . . 1 . . . . 1 . . . . . . . . . . . 1 Unlock Access 3 | . . . . . . . 1 . . 1 . . . . . . . 1 . . . . . . . . . . . . . . . . . Seal Access 3 | . . . . . . . . . . . . 1 . . . . . . . . . . 1 . . . . . . . . . . . 1 Unauthorized Hacks 31 | . 7 . 7 . . . 7 . . 1 . 1 . . . . . 2 . 1 . . 2 . . . . 1 . . . . 2 . . Terminals 30 | . 6 . 7 . . . 7 . . 1 . 1 . . . . . 2 . 1 . . 2 . . . . 1 . . . . 2 . . Assimilate 1 | . . . . . . . 1 . . . . . . . . . . . . . . . . . . . . . . . . . . . . Botnet 13 | . 1 . 1 . . . 1 . . 1 . 1 . . . . . 2 . 1 . . 2 . . . . 1 . . . . 2 . . Skim 16 | . 5 . 6 . . . 5 . . . . . . . . . . . . . . . . . . . . . . . . . . . . Fabricators . | . . . . . . . . . . . . . . . . . . . . . . . . . . . . . . . . . . . . Repair Stations . | . . . . . . . . . . . . . . . . . . . . . . . . . . . . . . . . . . . . Recycling Units 1 | . 1 . . . . . . . . . . . . . . . . . . . . . . . . . . . . . . . . . . Tunnel 1 | . 1 . . . . . . . . . . . . . . . . . . . . . . . . . . . . . . . . . . Scanalyzers . | . . . . . . . . . . . . . . . . . . . . . . . . . . . . . . . . . . . . Garrison Access . | . . . . . . . . . . . . . . . . . . . . . . . . . . . . . . . . . . . . Data Cores Recovered 1 | . . . . . . . . . . . . . . . . . . 1 . . . . . . . . . . . . . . . . . Used . | . . . . . . . . . . . . . . . . . . . . . . . . . . . . . . . . . . . . Hacking Detections 63 | . 7 . 9 . . . 11 1 . 3 1 5 . . . . . 5 . 1 1 . 7 . . . . 1 . . . . 6 . 5 Full Trace Events 3 | . . . 1 . . . . . . . . . . . . . . 2 . . . . . . . . . . . . . . . . . Feedback Events . | . . . . . . . . . . . . . . . . . . . . . . . . . . . . . . . . . . . . Feedback Blocked . | . . . . . . . . . . . . . . . . . . . . . . . . . . . . . . . . . . . . Robot Schematics Acquired . | . . . . . . . . . . . . . . . . . . . . . . . . . . . . . . . . . . . . Robots Built . | . . . . . . . . . . . . . . . . . . . . . . . . . . . . . . . . . . . . Authchips . | . . . . . . . . . . . . . . . . . . . . . . . . . . . . . . . . . . . . Time . | . . . . . . . . . . . . . . . . . . . . . . . . . . . . . . . . . . . . Total Robot Build Rating . | . . . . . . . . . . . . . . . . . . . . . . . . . . . . . . . . . . . . Part Schematics Acquired 4 | . . . . . . . . . . . . . . . . . . . . . . . . . . . . . . . 4 . . . . Parts Built . | . . . . . . . . . . . . . . . . . . . . . . . . . . . . . . . . . . . . Authchips . | . . . . . . . . . . . . . . . . . . . . . . . . . . . . . . . . . . . . Time . | . . . . . . . . . . . . . . . . . . . . . . . . . . . . . . . . . . . . Total Part Build Rating . | . . . . . . . . . . . . . . . . . . . . . . . . . . . . . . . . . . . . Parts Repaired . | . . . . . . . . . . . . . . . . . . . . . . . . . . . . . . . . . . . . Time . | . . . . . . . . . . . . . . . . . . . . . . . . . . . . . . . . . . . . Parts Recycled . | . . . . . . . . . . . . . . . . . . . . . . . . . . . . . . . . . . . . Recycled Matter . | . . . . . . . . . . . . . . . . . . . . . . . . . . . . . . . . . . . . Retrieved Matter . | . . . . . . . . . . . . . . . . . . . . . . . . . . . . . . . . . . . . Retrieved Components 10 | . . . . . . . 10 . . . . . . . . . . . . . . . . . . . . . . . . . . . . Parts Scanalyzed . | . . . . . . . . . . . . . . . . . . . . . . . . . . . . . . . . . . . . Part Schematics Acquired . | . . . . . . . . . . . . . . . . . . . . . . . . . . . . . . . . . . . . Parts Damaged . | . . . . . . . . . . . . . . . . . . . . . . . . . . . . . . . . . . . . Bothacking | -11 -10 -10 -9 -9 -9 -8 -8 -8 -8 -7 -7 -7 -7 -7 -7 -7 -6 -6 -6 -6 -6 -6 -5 -5 -5 -5 -4 -4 -4 -4 -4 -3 -3 -2 -1 ------------ Run | Yrd Mat Min Mat Min Exi Min Mat Gar Mat Fac Gar Fac Low Low Zio Dee Pro Fac Gar Ext Cet Arc Fac Upp Upp War Pro Fac Upp Upp Zhi Pro Res Res Acc Used RIF Installer . | . . . . . . . . . . . . . . . . . . . . . . . . . . . . . . . . . . . . Robots Hacked . | . . . . . . . . . . . . . . . . . . . . . . . . . . . . . . . . . . . . Non-combat . | . . . . . . . . . . . . . . . . . . . . . . . . . . . . . . . . . . . . Combat . | . . . . . . . . . . . . . . . . . . . . . . . . . . . . . . . . . . . . Robot Hacks Applied . | . . . . . . . . . . . . . . . . . . . . . . . . . . . . . . . . . . . . Relay Couplers Released 41 | . . . . . . . . 9 . . 13 . . . . . . 2 4 . . . 6 . . . . . . . . . . 2 5 Machine Destruction 34 | . . . . . . . . 9 . . 13 . . . . . . 2 4 . . . 2 . . . . . . . . . . 2 2 Programmers 7 | . . . . . . . . . . . . . . . . . . . . . . . 4 . . . . . . . . . . . 3 Fabnet Peak Effective % . | . . . . . . . . . . . . . . . . . . . . . . . . . . . . . . . . . . . . Robots Rewired 21 | . . . . . . . . . . . . . . 1 . . . . . 20 . . . . . . . . . . . . . . . Allies Hacked . | . . . . . . . . . . . . . . . . . . . . . . . . . . . . . . . . . . . . Hacks Repelled . | . . . . . . . . . . . . . . . . . . . . . . . . . . . . . . . . . . . . Allies | -11 -10 -10 -9 -9 -9 -8 -8 -8 -8 -7 -7 -7 -7 -7 -7 -7 -6 -6 -6 -6 -6 -6 -5 -5 -5 -5 -4 -4 -4 -4 -4 -3 -3 -2 -1 -------- Run | Yrd Mat Min Mat Min Exi Min Mat Gar Mat Fac Gar Fac Low Low Zio Dee Pro Fac Gar Ext Cet Arc Fac Upp Upp War Pro Fac Upp Upp Zhi Pro Res Res Acc Total Allies 36 | . . . . 3 . . 1 . . . . . . 1 2 . . . . 24 5 . . . . . . . . . . . . . . Largest Group 18 | . . . . 3 3 3 3 . . . . . . 1 2 2 . . . 18 8 7 . . . . . . . . . . . . . Highest-Rated Group 625 | . . . . 40 40 40 40 . . . . . . 30 192 192 . . . 504 625 536 . . . . . . . . . . . . . Highest-Rated Ally 159 | . . . . 16 16 16 16 . . . . . . 30 96 96 . . . 159 159 152 . . . . . . . . . . . . . Initial Warlord ECA Mod 281 | . . . . . . . . . 9 8 8 12 12 12 12 12 11 11 11 12 12 12 11 11 11 11 10 10 10 10 10 9 9 8 7 Total Orders 6 | . . . . . . . . . . . . . . . . . 3 . . . . . . . . . . . . . . . . . 3 EXPLORE 6 | . . . . . . . . . . . . . . . . . 3 . . . . . . . . . . . . . . . . . 3 Ally Attacks 326 | . . . . . . 25 25 . . . . . . 5 . 53 . . . 91 69 58 . . . . . . . . . . . . . Total Damage 7496 | . . . . . . 332 289 . . . . . . 84 . 1253 . . . 1793 1471 2274 . . . . . . . . . . . . . Kills 47 | . . . . . . 3 3 . . . . . . . . 7 . . . 10 9 15 . . . . . . . . . . . . . Allies Corrupted . | . . . . . . . . . . . . . . . . . . . . . . . . . . . . . . . . . . . . Allies Melted . | . . . . . . . . . . . . . . . . . . . . . . . . . . . . . . . . . . . . Intel | -11 -10 -10 -9 -9 -9 -8 -8 -8 -8 -7 -7 -7 -7 -7 -7 -7 -6 -6 -6 -6 -6 -6 -5 -5 -5 -5 -4 -4 -4 -4 -4 -3 -3 -2 -1 ------- Run | Yrd Mat Min Mat Min Exi Min Mat Gar Mat Fac Gar Fac Low Low Zio Dee Pro Fac Gar Ext Cet Arc Fac Upp Upp War Pro Fac Upp Upp Zhi Pro Res Res Acc Active Infowar (turns) 2792 | . . . . . . . . . . . . . . . . . . . . . . . . . . . . . 1 . . . 2127 663 1 Optics 2790 | . . . . . . . . . . . . . . . . . . . . . . . . . . . . . . . . . 2127 663 . Terrain 1111 | . . . . . . . . . . . . . . . . . . . . . . . . . . . . . . . . . 1111 . . T.N.C. 1 | . . . . . . . . . . . . . . . . . . . . . . . . . . . . . . . . . . . 1 Machine Analysis 1 | . . . . . . . . . . . . . . . . . . . . . . . . . . . . . 1 . . . . . . Robot Analysis Total 5 | . 1 . . . . . . . . . . . . . . . . . . . . . . . . . . . . . 4 . . . . Derelict Logs Recovered 13 | . . 3 . 2 . . . . . . . . 1 . 1 . 1 . . . . . . . 2 . 1 . . 2 . . . . . Drone Launches 6 | . . . . . . . . . . . . . . . . . 3 . . . . . . . . . . . . . . . . . 3 Drone Recoveries 3 | . . . . . . . . . . . . . . . . . 2 . . . . . . . . . . . . . . . . . 1 Exploration | -11 -10 -10 -9 -9 -9 -8 -8 -8 -8 -7 -7 -7 -7 -7 -7 -7 -6 -6 -6 -6 -6 -6 -5 -5 -5 -5 -4 -4 -4 -4 -4 -3 -3 -2 -1 ------------- Run | Yrd Mat Min Mat Min Exi Min Mat Gar Mat Fac Gar Fac Low Low Zio Dee Pro Fac Gar Ext Cet Arc Fac Upp Upp War Pro Fac Upp Upp Zhi Pro Res Res Acc Turns Passed 37168 | 115 890 651 2103 836 305 553 1450 1468 604 850 1049 592 264 577 1182 929 1523 468 975 2123 668 3839 1679 261 1011 587 1332 481 524 413 356 530 2523 1612 1845 Spaces Moved 15603 | 50 458 295 838 529 208 351 584 471 124 326 560 295 196 345 873 608 360 202 367 748 277 71 803 146 392 318 685 266 287 229 203 411 1242 706 779 Core 454 | 4 . . . . . . 1 . . . . . . . . 52 1 . . . 9 . . . . . . . . . . 224 3 . 160 Treads 4193 | 43 338 89 179 . . . 21 78 124 83 . . . . . . . . . . . . . . . . 478 266 287 229 203 187 1238 . 350 Legs 4890 | . . . . . . . . . . . 1 32 . . . . 359 202 367 748 268 71 803 146 392 318 207 . . . . . 1 706 269 Wheels 6066 | 3 120 206 659 529 208 351 562 393 . 243 559 263 196 345 873 556 . . . . . . . . . . . . . . . . . . . Hover . | . . . . . . . . . . . . . . . . . . . . . . . . . . . . . . . . . . . . Flight . | . . . . . . . . . . . . . . . . . . . . . . . . . . . . . . . . . . . . Fastest Speed 50 | 50 115 135 145 145 145 145 135 150 320 120 120 130 130 130 130 50 50 180 180 150 180 180 180 180 180 180 160 160 160 160 160 50 50 186 50 Average Speed 170 | 146 159 190 192 145 145 145 158 274 403 211 150 182 130 130 130 126 179 180 180 179 213 184 181 180 180 180 166 160 160 160 160 100 166 187 182 Slowest Speed 1500 | 160 175 320 480 145 145 145 1500 560 560 640 610 610 130 130 130 145 180 180 180 180 1150 185 210 180 180 180 180 160 160 160 160 300 305 189 320 Overloaded Moves . | . . . . . . . . . . . . . . . . . . . . . . . . . . . . . . . . . . . . Propulsion Burnouts . | . . . . . . . . . . . . . . . . . . . . . . . . . . . . . . . . . . . . Robots Hopped . | . . . . . . . . . . . . . . . . . . . . . . . . . . . . . . . . . . . . Potential Cave-ins 9 | . . . . . . . . . 7 . . . . . . . . . . . . . . . . . . . . . . . . . 2 Cave-ins Triggered . | . . . . . . . . . . . . . . . . . . . . . . . . . . . . . . . . . . . . Teleports 1 | . . . . . . . . . . . . . . . . . . . . . . . . . . . . . . . . 1 . . . Exploration Rate (%) 50 | 3 76 71 84 90 40 65 55 60 10 11 51 9 41 61 85 72 68 10 54 81 67 88 28 40 55 53 74 7 49 41 62 63 37 23 31 Regions Visited 35 Branch Regions 20 Pre-discovered Areas 14 | . 2 2 2 . . . 1 . . . . . 1 . 1 . . . . . . . . . . . 1 . . 1 3 . . . . Known Exits Taken 16 | . 1 1 1 . 1 1 1 . 1 1 . 1 1 1 1 . . 1 . . . . 1 . . . 1 1 . . . . . . . Unknown Exits Taken 16 | 1 . . . 1 . . . . . . . . . . . 1 1 . . 1 1 1 . 1 1 1 . . 1 1 1 1 1 1 . Scrap Searched 17 | . . 1 . 1 . 1 . . . . . . . 1 3 . 1 . . . . . . . 2 . 1 . 3 2 . 1 . . . Spaces Dug 130 | . . . . . . . . 13 10 . 43 . . . . . 15 11 1 1 . . 4 . . . . . . . . . 6 . 26 Terrain Destroyed 856 | . 16 . 28 15 . . 18 85 12 . 150 5 . . . 14 40 24 15 44 7 2 25 . 11 4 13 . . . . . 119 4 205 Melee 6 | . . . . . . . . . 6 . . . . . . . . . . . . . . . . . . . . . . . . . . Projectile 226 | . . . . . . . 1 . 6 . 1 . . . . 1 40 24 15 44 7 2 25 . 11 4 13 . . . . . 5 4 23 AOE 624 | . 16 . 28 15 . . 17 85 . . 149 5 . . . 13 . . . . . . . . . . . . . . . . 114 . 182 Terrain Rammed . | . . . . . . . . . . . . . . . . . . . . . . . . . . . . . . . . . . . . Walls Destroyed . | . . . . . . . . . . . . . . . . . . . . . . . . . . . . . . . . . . . . Machines Disabled . | . . . . . . . . . . . . . . . . . . . . . . . . . . . . . . . . . . . . Actions | -11 -10 -10 -9 -9 -9 -8 -8 -8 -8 -7 -7 -7 -7 -7 -7 -7 -6 -6 -6 -6 -6 -6 -5 -5 -5 -5 -4 -4 -4 -4 -4 -3 -3 -2 -1 --------- Run | Yrd Mat Min Mat Min Exi Min Mat Gar Mat Fac Gar Fac Low Low Zio Dee Pro Fac Gar Ext Cet Arc Fac Upp Upp War Pro Fac Upp Upp Zhi Pro Res Res Acc Total 24505 | 69 560 347 1189 567 211 375 973 573 192 425 707 327 198 423 919 721 1180 273 624 1374 330 3777 940 145 673 326 789 317 334 257 225 475 1535 997 1158 Wait 6645 | . 35 17 253 23 3 3 261 28 41 38 31 11 . 36 29 44 768 50 209 302 17 3694 88 . 264 6 19 32 3 8 . 18 46 209 59 Move 15568 | 49 457 294 837 528 207 350 583 469 123 325 559 294 195 344 872 607 359 202 366 747 276 70 802 145 391 317 684 265 286 228 202 410 1241 705 779 Hop . | . . . . . . . . . . . . . . . . . . . . . . . . . . . . . . . . . . . . Pick Up 182 | 1 13 10 13 1 1 4 15 . 1 8 1 3 . 1 3 6 4 . . . 5 1 . . . . 1 4 2 2 1 1 45 19 16 Fast Attach 143 | 7 6 . 3 . . . 10 1 2 4 2 1 . 4 6 8 1 . . . 5 . 1 . 1 . 7 4 7 . 8 4 37 6 8 Attach 126 | . 2 5 7 . . 1 8 4 . 6 3 . . 4 . 11 1 . . . 2 . . . . . 2 1 2 2 . 2 23 11 29 Detach 17 | . . . . . . . 1 . . 1 . . . 1 1 2 2 . . . 1 . . . . . . . . . . . 2 2 4 Swap 91 | . 5 . 5 . . 1 10 5 3 3 11 5 . . 2 8 . . . . . . . . . . . 3 6 1 . . 13 7 3 Drop 223 | 1 10 . 6 . . 4 17 . 1 11 . 3 . 2 6 11 11 3 6 8 10 9 6 . 5 . 3 4 8 1 8 7 25 31 6 Fire 1136 | 11 31 21 65 15 . 12 68 48 14 29 36 10 3 22 . 24 33 18 28 70 14 3 43 . 12 3 73 4 20 10 6 26 103 7 254 Melee 12 | . . . . . . . . . 7 . . . . . . . . . . . . . . . . . . . . . . 5 . . . Ram 2 | . . . . . . . . . . . . . . . . . . . . . . . . . . . . . . . . 2 . . . Kick 1 | . . . . . . . . . . . . . . . . . . . . 1 . . . . . . . . . . . . . . . Crush 6 | . 1 . . . . . . . . . . . . . . . . . . . . . . . . . . . . 5 . . . . . Escape Stasis 120 | . . . . . . . . 18 . . 64 . . . . . . . 15 23 . . . . . . . . . . . . . . . Rewire 233 | . . . . . . . . . . . . . . 9 . . 1 . . 223 . . . . . . . . . . . . . . . Trap . | . . . . . . . . . . . . . . . . . . . . . . . . . . . . . . . . . . . . Miscellaneous . | . . . . . . . . . . . . . . . . . . . . . . . . . . . . . . . . . . . . Route ------- -11/Scrapyard -10/Materials (discovered 5 exits: *Mat x3 / *Min x2) -10/Mines (discovered 2 exits: *Mat x2) -9/Materials (discovered 4 exits: *Mat x3 / *Min) -9/Mines (discovered 3 exits: *Mat x2 / *Exi) -9/Exiles -8/Mines -8/Materials (discovered 4 exits: *Fac x3 / Gar) -8/Garrison (discovered 2 exits: [*Mat x2]) -8/Materials -7/Factory (discovered 3 exits: *Fac / Low / Gar) -7/Garrison (discovered 2 exits: *Fac x2) -7/Factory (discovered 4 exits: Sto x2 / *Low x2) -7/Lower Caves -7/Lower Caves -7/Zion (discovered 2 exits: *Dee / [*Pro]) -7/Deep Caves -6/Proximity Caves -6/Factory (discovered 2 exits: Ext / Gar) -6/Garrison (discovered 2 exits: *Ext x2) -6/Extension (discovered 2 exits: *Fac / *Cet) -6/Cetus (discovered 2 exits: *Fac / *Arc) -6/Archives (discovered 2 exits: *Fac / [*Hub]) -5/Factory (discovered 4 exits: *Fac x2 / *Upp x2) -5/Upper Caves -5/Upper Caves (discovered 2 exits: *Fac / *War) -5/Warlord -4/Proximity Caves -4/Factory (discovered 3 exits: *Upp x2 / Arm) -4/Upper Caves -4/Upper Caves -4/Zhirov -3/Proximity Caves -3/Research (discovered 3 exits: [*Res] / Qua x2) -2/Research (discovered 3 exits: *Acc / *Tes x2) -1/Access History --------- Turn | Location | Event 3 | -11/Scrapyard | Discovered new exit (range 15) 116 | -11/Scrapyard | Entered Materials 325 | -10/Materials | Build established: Mutant 482 | -10/Materials | Discovered new exit (range 12) 551 | -10/Materials | Discovered new exit (range 16) 654 | -10/Materials | Learned Storage non-interactive machine intel 704 | -10/Materials | Identified exit to Materials 744 | -10/Materials | Loaded intel: 14 trap records 803 | -10/Materials | Learned Storage stockpile data 823 | -10/Materials | Identified exit to Mines 932 | -10/Materials | Discovered exit to Mines (range 10) 1006 | -10/Materials | Entered Mines 1174 | -10/Mines | Learned location of Zion (-7) 1364 | -10/Mines | Learned Materials terminal intel 1375 | -10/Mines | Lost 5 parts (1p3n1w) 1426 | -10/Mines | Received a Rocket Launcher from a helpful Derelict 1657 | -10/Mines | Entered Materials 1657 | -9/Materials | Evolved 2 slots: Utility x1, Weapon x1 1658 | -9/Materials | Identified exit to Materials 1658 | -9/Materials | Identified exit to Mines 1659 | -9/Materials | Loaded intel: 11 terminal locations 2224 | -9/Materials | Build established: Scavenger-Gunner 2473 | -9/Materials | Destroyed 11 combat bots 2764 | -9/Materials | Discovered exit to Materials (range 4) 3107 | -9/Materials | Build established: Gunner 3473 | -9/Materials | Learned location of Storage (-7) 3532 | -9/Materials | Learned location of 1 exit from Recycling 3583 | -9/Materials | Learned 2 Storage zone layouts 3679 | -9/Materials | Learned Storage emergency access door positions 3742 | -9/Materials | Learned Storage terminal intel 3760 | -9/Materials | Entered Mines 3764 | -9/Mines | Met a Derelict bent on vengeance 3784 | -9/Mines | Deemed a non-threat by the Exiles lab entrance 3784 | -9/Mines | Discovered new exit (range 5) 3855 | -9/Mines | Learned Materials security intel 3866 | -9/Mines | Discovered exit to Materials (range 5) 4229 | -9/Mines | Learned Materials stockpile data 4281 | -9/Mines | Discovered exit to Materials (range 6) 4302 | -9/Mines | Assisted by bots powering up and referring to "LRC-V3" 4596 | -9/Mines | Entered Exiles 4596 | -9/Exiles | Accompanied by 3 allies 4597 | -9/Exiles | Identified exit to Mines 4631 | -9/Exiles | Met 8R-AWN 4656 | -9/Exiles | Met EX-HEX 4695 | -9/Exiles | Met EX-BIN 4714 | -9/Exiles | Aligned with FarCom system 4715 | -9/Exiles | Given EX-Vault access code 4749 | -9/Exiles | Opened EX-Vault 4759 | -9/Exiles | Found Skeleton Box 4789 | -9/Exiles | Warned to stay clear of 0b10 Research branches 4901 | -9/Exiles | Left Exiles lab with Skeleton Box 4901 | -9/Exiles | Entered Mines 4901 | -8/Mines | Accompanied by 3 allies 4973 | -8/Mines | Discovered exit to Materials (range 11) 5202 | -8/Mines | Build established: Skirmisher 5454 | -8/Mines | Entered Materials 5454 | -8/Materials | Accompanied by 3 allies 5454 | -8/Materials | Evolved 2 slots: Utility x2 5662 | -8/Materials | Discovered new exit (range 4) 5835 | -8/Materials | Lost 3 allies 5846 | -8/Materials | Destroyed 9 combat bots 5847 | -8/Materials | Lost 9 parts (1p2n2u4w) 6186 | -8/Materials | Discovered new exit (range 5) 6459 | -8/Materials | Build established: Tank 6466 | -8/Materials | Garrison activated, responded to threat 6514 | -8/Materials | Core integrity fell below 50% 6714 | -8/Materials | Identified exit to Garrison 6741 | -8/Materials | Learned location of Recycling (-7) 6784 | -8/Materials | Identified exit to Factory 6819 | -8/Materials | Learned 2 Storage zone layouts 6861 | -8/Materials | Learned 4 Recycling zone layouts 6875 | -8/Materials | Learned location of 2 exits from Lower Caves 6901 | -8/Materials | Learned Storage security intel 6904 | -8/Materials | Entered Garrison 7023 | -8/Garrison | Garrison Relay disabled 7032 | -8/Garrison | Triggered checkpoint 7180 | -8/Garrison | Triggered checkpoint 7182 | -8/Garrison | Triggered checkpoint 7212 | -8/Garrison | Destroyed 7 combat bots 7366 | -8/Garrison | Triggered checkpoint 7483 | -8/Garrison | Garrison Relay disabled 7646 | -8/Garrison | Discovered new exit (range 12) 7674 | -8/Garrison | Attempted to access garrison exit controls, blocked by remote lockdown 7728 | -8/Garrison | Triggered checkpoint 7753 | -8/Garrison | Destroyed 7 combat bots 7826 | -8/Garrison | Build established: Skirmisher 7898 | -8/Garrison | Triggered checkpoint 7934 | -8/Garrison | Lost 3 parts (1p1n1w) 8079 | -8/Garrison | Discovered new exit (range 12) 8140 | -8/Garrison | Triggered checkpoint 8206 | -8/Garrison | Garrison Relay disabled 8372 | -8/Garrison | Entered Materials 8697 | -8/Materials | Build established: Scavenger-Skirmisher 8772 | -8/Materials | First assault squad dispatched 8976 | -8/Materials | Entered Factory 8976 | -7/Factory | Evolved 2 slots: Power x1, Utility x1 8977 | -7/Factory | Identified exit to Lower Caves 9045 | -7/Factory | Discovered new exit (range 5) 9541 | -7/Factory | System corruption reached 10% 9702 | -7/Factory | Build established: Scavenger-Gunner 9817 | -7/Factory | Identified exit to Garrison 9826 | -7/Factory | Entered Garrison 9868 | -7/Garrison | Triggered checkpoint 9870 | -7/Garrison | Garrison Relay disabled 9967 | -7/Garrison | Triggered checkpoint 10208 | -7/Garrison | Triggered checkpoint 10238 | -7/Garrison | Garrison Relay disabled 10271 | -7/Garrison | Discovered new exit (range 10) 10317 | -7/Garrison | Build established: Gunner 10448 | -7/Garrison | Discovered new exit (range 10) 10484 | -7/Garrison | Triggered checkpoint 10525 | -7/Garrison | Garrison Relay disabled 10780 | -7/Garrison | Build established: Scavenger-Gunner 10875 | -7/Garrison | Phase Generator disabled 10875 | -7/Garrison | Entered Factory 11373 | -7/Factory | Build established: Gunner 11409 | -7/Factory | Identified exit to Storage 11467 | -7/Factory | Entered Lower Caves 11468 | -7/Lower Caves | Identified exit to Lower Caves 11478 | -7/Lower Caves | Met a Warlord Commander 11479 | -7/Lower Caves | Learned location of Warlord (-5) 11480 | -7/Lower Caves | Warlord Commander delivered Encrypted Comm Array 11619 | -7/Lower Caves | Encountered a Warlord checkpoint 11731 | -7/Lower Caves | Entered another Lower Caves area 11732 | -7/Lower Caves | Identified exit to Zion 11981 | -7/Lower Caves | Attracted the attention of an 0b10 outpost 12075 | -7/Lower Caves | Lost 5 parts (1p3u1w) 12080 | -7/Lower Caves | Destroyed 9 combat bots 12220 | -7/Lower Caves | Encountered a Warlord checkpoint 12308 | -7/Lower Caves | Entered Zion 12361 | -7/Zion | System corruption cleaned by Quarantine Array 12526 | -7/Zion | Found CR-A16's Pointy Stick 12571 | -7/Zion | Discovered new exit (range 13) 12787 | -7/Zion | Received a hallucinogenic algorithm 12863 | -7/Zion | Given A8's code to call for help 12875 | -7/Zion | Loaded intel: 5 derelict terminal locations 12905 | -7/Zion | Remotely autohacked Sealed Blast Doors 12916 | -7/Zion | Remotely autohacked Sealed Blast Doors 12916 | -7/Zion | Remotely autohacked Sealed Blast Doors 12916 | -7/Zion | Remotely autohacked Sealed Blast Doors 13153 | -7/Zion | Learned location of Quarantine (-3) 13221 | -7/Zion | Identified exit to Deep Caves 13438 | -7/Zion | Enhanced Grunt warped into view, answering call for help 13445 | -7/Zion | Saw the warning signs outside the Deep Caves entrance 13458 | -7/Zion | Enhanced Grunt warped into view, answering call for help 13490 | -7/Zion | Entered Deep Caves 13490 | -7/Deep Caves | Accompanied by 2 allies 13606 | -7/Deep Caves | Attacked by Z-Imprinter 13627 | -7/Deep Caves | Allies destroyed Z-Imprinter 13652 | -7/Deep Caves | Lost 3 parts (1p1u1w) 13660 | -7/Deep Caves | Found Prototype Protection 13660 | -7/Deep Caves | Identified Zio. Weapon Casing 13764 | -7/Deep Caves | Z-Facility disabled 13803 | -7/Deep Caves | Found Prototype Protection 13803 | -7/Deep Caves | Identified Zio. Heavy Carapace 14134 | -7/Deep Caves | Discovered new exit (range 6) 14282 | -7/Deep Caves | Spotted AG-62194 14316 | -7/Deep Caves | Destroyed AG-62194 14321 | -7/Deep Caves | Found GOLEM Unit 14362 | -7/Deep Caves | Triggered Deep Caves wall 14367 | -7/Deep Caves | Core integrity fell below 50% 14367 | -7/Deep Caves | Spotted AS-15018 14408 | -7/Deep Caves | Destroyed 17 combat bots 14419 | -7/Deep Caves | Entered Proximity Caves 14422 | -6/Proximity Caves | Spotter reported a threat 14422 | -6/Proximity Caves | Spotter reported a threat 14424 | -6/Proximity Caves | Lost 11 parts (2p1n3u5w) 14669 | -6/Proximity Caves | Build established: Mutant 14975 | -6/Proximity Caves | Build established: Golem 15130 | -6/Proximity Caves | Spotter reported a threat 15150 | -6/Proximity Caves | Spotter reported a threat 15169 | -6/Proximity Caves | Attracted the attention of an 0b10 checkpoint 15183 | -6/Proximity Caves | Spotter reported a threat 15277 | -6/Proximity Caves | Spotter reported a threat 15387 | -6/Proximity Caves | Learned Factory interactive machine intel 15893 | -6/Proximity Caves | Discovered new exit (range 5) 15942 | -6/Proximity Caves | Entered Factory 15942 | -6/Factory | Evolved 2 slots: Utility x2 15943 | -6/Factory | Identified exit to Extension 15944 | -6/Factory | Loaded intel: 56 interactive machine locations 16292 | -6/Factory | Search patrols dispatched 16410 | -6/Factory | Identified exit to Garrison 16410 | -6/Factory | Entered Garrison 16450 | -6/Garrison | Triggered checkpoint 16456 | -6/Garrison | Triggered checkpoint 16577 | -6/Garrison | Garrison Relay disabled 16738 | -6/Garrison | Triggered checkpoint 16967 | -6/Garrison | Discovered exit to Extension (range 10) 17102 | -6/Garrison | Triggered checkpoint 17329 | -6/Garrison | Discovered exit to Extension (range 10) 17385 | -6/Garrison | Entered Extension 17735 | -6/Extension | First assault squad dispatched 17974 | -6/Extension | Rescued a captive Derelict 17976 | -6/Extension | Rescued a captive Derelict 18027 | -6/Extension | Rescued a captive Derelict 18390 | -6/Extension | Build established: Commander-Golem 18430 | -6/Extension | Warlord forces began an assault 18490 | -6/Extension | Spotted B-75 Beast 18497 | -6/Extension | Destroyed B-75 Beast 18517 | -6/Extension | Spotted B-75 Beast 18523 | -6/Extension | Allies destroyed B-75 Beast 18571 | -6/Extension | Lost 19 allies 18827 | -6/Extension | Build established: Golem 18910 | -6/Extension | Energy Cycler disabled 19268 | -6/Extension | Rescued A7 19483 | -6/Extension | Discovered new exit (range 10) 19485 | -6/Extension | Discovered new exit (range 6) 19508 | -6/Extension | Entered Cetus 19508 | -6/Cetus | Accompanied by 5 allies (A7) 19513 | -6/Cetus | Acquired a Cetus Manufacturing Module code from A7 19531 | -6/Cetus | Spotted Cetus Guard 19531 | -6/Cetus | Spotted Cetus Guard 19536 | -6/Cetus | Allies destroyed Cetus Guard 19536 | -6/Cetus | Spotted Cetus Guard 19536 | -6/Cetus | Spotted Cetus Guard 19538 | -6/Cetus | Destroyed Cetus Guard 19547 | -6/Cetus | Allies destroyed Cetus Guard 19548 | -6/Cetus | Allies destroyed Cetus Guard 19633 | -6/Cetus | Started Cetus Manufacturing Module 19653 | -6/Cetus | Escorted A7 to Cetus Mainframe 19658 | -6/Cetus | Manufactured an Enhanced Grunt 19673 | -6/Cetus | Discovered new exit (range 16) 19675 | -6/Cetus | Build established: Commander-Golem 19683 | -6/Cetus | Manufactured an Enhanced Grunt 19706 | -6/Cetus | Spotted Cetus Guard 19707 | -6/Cetus | Spotted Cetus Guard 19708 | -6/Cetus | Manufactured an Enhanced Grunt 19711 | -6/Cetus | Spotted Cetus Guard 19712 | -6/Cetus | Spotted Cetus Guard 19723 | -6/Cetus | Allies destroyed Cetus Guard 19725 | -6/Cetus | Allies destroyed Cetus Guard 19733 | -6/Cetus | Manufactured an Enhanced Grunt 19740 | -6/Cetus | Allies destroyed Cetus Guard 19741 | -6/Cetus | Destroyed Cetus Guard 19758 | -6/Cetus | Manufactured an Enhanced Grunt 19770 | -6/Cetus | Lost 6 parts (2n2u2w) 19770 | -6/Cetus | Discovered new exit (range 16) 19835 | -6/Cetus | Met Revision 17 20176 | -6/Cetus | Entered Archives 20176 | -6/Archives | Accompanied by 7 allies (A7) 20181 | -6/Archives | Received a hacking code to weaken MAIN.C 20199 | -6/Archives | Met Zhirov 20205 | -6/Archives | Reinforcements dispatched to Archives 20219 | -6/Archives | Read partially decrypted archive contents 20250 | -6/Archives | Reinforcements dispatched to Archives 20252 | -6/Archives | Zhirov warped through subspace 20255 | -6/Archives | Discovered new exit (range 14) 20270 | -6/Archives | Zhirov detonated Archives 20284 | -6/Archives | Discovered new exit (range 15) 20301 | -6/Archives | Lost 6 allies 20485 | -6/Archives | Build established: Scavenger-Golem 21506 | -6/Archives | Build established: Golem 24015 | -6/Archives | Entered Factory 24015 | -5/Factory | Evolved 2 slots: Utility x2 24545 | -5/Factory | Discovered new exit (range 11) 24871 | -5/Factory | Identified exit to Factory 25135 | -5/Factory | Discovered exit to Factory (range 7) 25545 | -5/Factory | Identified exit to Upper Caves 25694 | -5/Factory | Entered Upper Caves 25884 | -5/Upper Caves | Encountered a Warlord checkpoint 25943 | -5/Upper Caves | Discovered new exit (range 9) 25955 | -5/Upper Caves | Entered another Upper Caves area 25976 | -5/Upper Caves | Encountered a Warlord checkpoint 26036 | -5/Upper Caves | Discovered exit to Factory (range 5) 26413 | -5/Upper Caves | Entered a destroyed Warlord outpost 26421 | -5/Upper Caves | Found DCF Scrap (13 items) 26667 | -5/Upper Caves | Discovered new exit (range 8) 26966 | -5/Upper Caves | Entered Warlord 27304 | -5/Warlord | Met Warlord 27329 | -5/Warlord | Warlord's base attacked by MAIN.C 27491 | -5/Warlord | Opened side exit 27491 | -5/Warlord | Spotted B-75 Beast 27499 | -5/Warlord | Destroyed B-75 Beast 27540 | -5/Warlord | Discovered new exit (range 9) 27553 | -5/Warlord | Entered Proximity Caves 27555 | -4/Proximity Caves | Spotter reported a threat 27556 | -4/Proximity Caves | Spotter reported a threat 27659 | -4/Proximity Caves | Lost 3 parts (2u1w) 27965 | -4/Proximity Caves | Spotted B-86 Titan 28008 | -4/Proximity Caves | Destroyed B-86 Titan 28022 | -4/Proximity Caves | Lost 3 parts (2u1w) 28194 | -4/Proximity Caves | Build established: Mutant 28519 | -4/Proximity Caves | Build established: Scavenger-Mutant 28659 | -4/Proximity Caves | Attracted the attention of an 0b10 checkpoint 28731 | -4/Proximity Caves | Discovered exit to Factory (range 16) 28885 | -4/Proximity Caves | Entered Factory 28885 | -4/Factory | Evolved 2 slots: Propulsion x2 28886 | -4/Factory | Identified exit to Upper Caves 28886 | -4/Factory | Identified exit to Armory 29221 | -4/Factory | Build established: Scavenger-Tank 29366 | -4/Factory | Entered Upper Caves 29795 | -4/Upper Caves | Discovered new exit (range 13) 29890 | -4/Upper Caves | Entered another Upper Caves area 29892 | -4/Upper Caves | Attracted the attention of an 0b10 checkpoint 30218 | -4/Upper Caves | Build established: Scavenger-Gunner 30221 | -4/Upper Caves | Discovered new exit (range 10) 30292 | -4/Upper Caves | Learned Research stockpile data 30303 | -4/Upper Caves | Entered Zhirov 30303 | -4/Zhirov | Discovered new exit (range 3) 30369 | -4/Zhirov | Learned location of Testing (-2) 30369 | -4/Zhirov | Learned location of Command (-1) 30422 | -4/Zhirov | Found Alien Artifact 30422 | -4/Zhirov | Identified Integrated Reactor 30422 | -4/Zhirov | Installed Integrated Reactor, increased core energy generation (+10) 30570 | -4/Zhirov | Found Alien Artifact 30659 | -4/Zhirov | Entered Proximity Caves 30895 | -3/Proximity Caves | Attracted the attention of an 0b10 checkpoint 30902 | -3/Proximity Caves | Core integrity fell below 50% 30940 | -3/Proximity Caves | Lost 3 parts (3u) 31025 | -3/Proximity Caves | Attracted the attention of an 0b10 outpost 31065 | -3/Proximity Caves | Spotted B-86 Titan 31078 | -3/Proximity Caves | Core integrity fell below 20% 31130 | -3/Proximity Caves | Lost 8 parts (2p2n3u1w) 31142 | -3/Proximity Caves | Identified Transdimensional Reconstructor 31142 | -3/Proximity Caves | Warped through subspace 31183 | -3/Proximity Caves | Discovered new exit (range 12) 31189 | -3/Proximity Caves | Entered Research 31189 | -3/Research | Evolved 2 slots: Power x1, Propulsion x1 31389 | -3/Research | Revision forces began assault on 0b10 31416 | -3/Research | Met up with Revision 17++ 31497 | -3/Research | Build established: Tank 31517 | -3/Research | Identified exit to Quarantine 31551 | -3/Research | Found Hvy. Reflective Plating 31880 | -3/Research | Build established: Scavenger-Tank 31889 | -3/Research | Research terminal network offline 31968 | -3/Research | Found Fusion Bomb Launcher 32154 | -3/Research | Found Gamma Bomb Array 32555 | -3/Research | Lost 3 allies 32573 | -3/Research | Spotted Striker 32577 | -3/Research | Destroyed Striker 32615 | -3/Research | Found Gamma Bomb Array 32619 | -3/Research | Spotted Striker 32622 | -3/Research | Spotted Striker 32630 | -3/Research | Spotted Striker 32631 | -3/Research | Destroyed Striker 32633 | -3/Research | Destroyed Striker 32635 | -3/Research | Spotted Striker 32641 | -3/Research | Destroyed Striker 32641 | -3/Research | Spotted Striker 32642 | -3/Research | Destroyed Striker 32650 | -3/Research | Destroyed Striker 32699 | -3/Research | Lost 3 parts (1p1u1w) 32707 | -3/Research | Destroyed 10 combat bots 32732 | -3/Research | Spotted Striker 32753 | -3/Research | Destroyed Striker 32767 | -3/Research | Spotted Striker 32769 | -3/Research | Spotted Striker 32777 | -3/Research | Destroyed Striker 32782 | -3/Research | Spotted Striker 32783 | -3/Research | Destroyed Striker 32790 | -3/Research | Destroyed Striker 32823 | -3/Research | Destroyed 12 combat bots 32825 | -3/Research | Lost 5 parts (1p1u3w) 32833 | -3/Research | System corruption reached 10% 32962 | -3/Research | Build established: Scavenger-Skirmisher 33036 | -3/Research | Spotted Striker 33071 | -3/Research | Destroyed Striker 33108 | -3/Research | Lost 10 parts (1p3n5u1w) 33188 | -3/Research | Spotted Striker 33207 | -3/Research | Destroyed Striker 33230 | -3/Research | Lost 3 parts (2u1w) 33418 | -3/Research | Spotted Executioner 33419 | -3/Research | Spotted Striker 33444 | -3/Research | Spotted Striker 33444 | -3/Research | Spotted Striker 33455 | -3/Research | System corruption reached 30% 33466 | -3/Research | Destroyed Striker 33471 | -3/Research | Destroyed Striker 33530 | -3/Research | Discovered new exit (range 8) 33712 | -3/Research | Entered another Research area 33712 | -2/Research | Warlord forces began assault on 0b10 33712 | -2/Research | Evolved 2 slots: Propulsion x1, Weapon x1 33737 | -2/Research | Distinguished unit "Cat Herders" dispatched to help 33760 | -2/Research | Build established: Scavenger-Tank 33822 | -2/Research | Research machine network offline 34078 | -2/Research | Discovered new exit (range 15) 34130 | -2/Research | Found Fusion Bomb Launcher 34132 | -2/Research | Found Fusion Bomb Launcher 34160 | -2/Research | Found Launcher Loader 34224 | -2/Research | Borebot progress halted 34228 | -2/Research | Discovered new exit (range 19) 34373 | -2/Research | Discovered new exit (range 19) 34381 | -2/Research | Found Quantum Capacitor 34414 | -2/Research | Identified exit to Testing 34472 | -2/Research | Borebot progress halted 34473 | -2/Research | Found Prototype Hackware 34473 | -2/Research | Identified Exp. System Shield 34521 | -2/Research | Borebot progress halted 35037 | -2/Research | Spotted Striker 35089 | -2/Research | Lost 12 allies 35221 | -2/Research | Given Cave Seal Controls access code 35324 | -2/Research | Entered Access 35324 | -1/Access | Evolved 2 slots: Utility x2 35538 | -1/Access | Spotted B-99 Colossus 35578 | -1/Access | Destroyed B-99 Colossus 35609 | -1/Access | Lost 4 parts (3u1w) 35723 | -1/Access | Lost 3 parts (1n2u) 35849 | -1/Access | Destroyed 10 combat bots 36049 | -1/Access | Lost 3 parts (2n1u) 36847 | -1/Access | Found Gamma Bomb Array 36971 | -1/Access | Spotted B-99 Colossus 36981 | -1/Access | Garrison activated, responded to threat 36996 | -1/Access | System corruption reached 10% 37013 | -1/Access | Destroyed 17 combat bots 37074 | -1/Access | First assault squad dispatched 37115 | -1/Access | Core integrity fell below 50% 37120 | -1/Access | Lost 31 parts (8p7n11u5w) 37149 | -1/Access | Core integrity fell below 20% 37169 | -1/Access | Destroyed by G-73 Enforcer with Phase Gun Last Messages --------------- 37147_ G-73 Enforcer unfolds itself. 37147_ L-61 Swordsman unfolds itself. 37147_ B-74 Champion unfolds itself. 37147_ L-61 Swordsman unfolds itself. 37147_ M-36 Artificer unfolds itself. 37148_ Slug penetrates Wall. 37149_ System corrupted: Energy discharge (-20). 37149_ Slug penetrates L-61 Swordsman. 37149_ Penetrated by Slug. 37149_ Slug penetrates L-61 Swordsman. 37151_ Adv. Hacking Suite destroyed. 37155_ O-32 Director: "IFF HANDSHAKE FAILED. SECURING TERMINAL." 37157_ O-32 Director uses terminal to summon reinforcements. 37157_ ALERT: Hostiles spotted, dispatching reinforcements to Terminal A010. 37157_ O-32 Director locks terminal. 37167_ Z/KH&HW=ZF D/&EYJEHPSDQYQX Map ----- +----------------------------------------------------+ | ?????????????????????????????????????????????????? | | ?????????????????????????????????????????????????? | | ?????????????????????????????????????????????????? | | ?????????????????????????????????????????????????? | | ?????????????????????????????????????????????????? | | ?????????????????????????????????????????????????? | | ?????????????????????????????????????????????????? | | ?????????????????????????????????????????????????? | | ???????????????##############????????????????????? | | ???????????????# #????????????????????? | | ???????????????# #????????????????????? | | ???????????????# """"" ""#????????????????????? | | ???????????????# """"" ""#????????????????????? | | ???????????????# """"" T"#????????????????????? | | ???????????????# """"" ""#????????????????????? | | ???????????????# """"" ""#????????????????????? | | ???????????????# """"" #????????????????????? | | ???????????????# s #????????????????????? | | ???????????????# #????????????????????? | | ???????????????# ] s #????????????????????? | | ???????????????# s #????????????????????? | | ########+#############w###########???????????????? | | s #???????????????? | | mh l #???????????????? | | " h g l #???????????????? | | "%" b hh @ #???????????????? | | " #???????????????? | | #???????????????? | | #???????????????? | | #/?## ############## ?????????????? | | ??# #????????????? ???????????? | | ?# #????????????? ??????????? | | ?# #????????????? ??????????? | | # #????????????? ???????????? | | # #????????????? ???????????? | | + #????????????? ????????????? | | # #?????????????####### ????????????? | | # #???????????????????? ??????????????? | | ?# #????????????????????????????????????? | | ?# #????????????????????????????????????? | | " ??# #????????????????????????????????????? | | " ??# #????????????????????????????????????? | | #???# #????????????????????????????????????? | | ????# #????????????????????????????????????? | | ????# #????????????????????????????????????? | | ????# #????????????????????????????????????? | | ????# #????????????????????????????????????? | | ????# #????????????????????????????????????? | | ????# #????????????????????????????????????? | | ????# ###############??????????????????????? | +----------------------------------------------------+ Best States ------------- Heat Dissipation 137 Coolant Potential 100 Energy Generation 79 Energy Capacity 1980 Matter Stores 300 Matter Capacity 300 Sight Range 20 Terrain Scan Range 24 Terrain Scan Density 10 Power Amplification 30 Additional Mass Support 20 Base Temperature (-) 100 Armor Coverage 1200 Resistance: KI 30 Resistance: TH 30 Resistance: EX 15 Resistance: EM 15 Resistance: I 15 Resistance: S 15 Resistance: P 15 Power Shielding 90 Weapon Shielding 100 Weapon Cycling 30 Phase Shifting 10 Evasion (%) 58 Targeting Accuracy 13 Melee Accuracy 6 Target Analysis 8 Core Analysis 8 Recoil Reduction 6 Matter Filtering 50 Energy Filtering 30 Particle Charging 15 Offensive Hacking 28 Defensive Hacking 16 Item Schematics ----------------- Assault Drone Bay | -4/Zhirov | Free Exp. Heat Sink | -4/Zhirov | Free Exp. Optical Array | -4/Zhirov | Free Imp. Arc Thrower | -4/Zhirov | Free Robot Schematics ------------------ None Fabricated ------------ Nothing Repaired ---------- Nothing Alien Tech Used ----------------- Integrated Reactor Transdimensional Reconstructor Achievements -------------- Collateral Damage Great Explorer Gunslinger Challenges ------------ None Game ------ Seed SubatomicSchematicWell Manual? 0 Play Time 03:39:01 Cumulative 188.8 hours Start 2025.08.16 @ 14:55:52 End 2025.08.16 @ 18:36:38 Sessions 1 Manual Loads 0 Difficulty Rogue Special Mode None Game No. 156 Rogue 156 Adventurer 0 Explorer 0 Win Type - Total 5 Types 3/0/1/1/0/0/0/0/0/0 Lore% 79 Gallery% 71 Achievement% 66 Wizard Run 0 Options --------- Layout 1 ASCII 0 Keyboard 0 Movement Numpad Keybinds 0 Fullscreen 1 Font 24/Smallcaps Map View 50x35 Zoom Use 0% Tactical HUD 1 Map Filters NONE Filters NONE Steam 1 RUN: 0fc3d961-747e-4521-a13e-8e954d9a54ff